Workbook

Sheet Cover & Instructions
A1: Welcome to the Ironmaking Cost and Greenhouse Gas (GHG) Estimator Tool. Read everything here first!!!
A2: Disclaimer
A3: This spreadsheet tool is not designed to model every possible iron or steelmaking technology and its use is not a criterion for a succesful proposal.
A4: This tool is meant for non-LCA experts to use! As long as you can estimate the material and energy inputs of your technology, this tool will do much of the background LCA work for you.
A5: The goal of this tool is to enable fair analysis of technologies using input data from a common, standard input library.
A6: Use this tool to estimate all your technology's material and energy inputs to your proposed iron/steelmaking technology. You can choose type of energy input (e.g. natural gas, electricity, hydrogen) and type of feedstock. If a material or energy carrier is both produced and consumed within your process, do not model it here. Only quantify externally purchased materials and energy carriers. The only exception is if you plan to purchase natural gas, reform it to H2, and sequester the CO2 on-site. In that case, choose the "SMR+CCS H2" input rather than "Natural Gas"
A7: It should be possible to model your proposed technology using the data provided. If there are significant barriers to modeling your technology with the tool, do the best you can and discuss any limitations in your application.
A8: If you are NOT making a steel product as part of your application (i.e. stopping after the ironmaking step), do not add values to any of the green-shaded cells on the "Your Tech - Edit This Sheet" sheet for stamping, sintering, skin mill, and hot rolling. Also do not add values to any of the green-shaded cells in this sheet that quantify energy and material inputs to the steelmaking step.
A9: The embodied emissions for steel scrap include collection, transportation, and sorting.
A10: This tool only tracks emissions from greenhouse gas emissions. Refer back to the FOA and address any other environmental concerns.
A11: This tool does not directly break emissions into Scopes as defined by the World Resources Institute (WRI) GHG Protocol.
A24: The above steps are all covered automatically in this tool. If a particular technology is not part of your process, please make sure those values in the "Your Tech - Edit This Sheet" tab are zero.
A26: Sheet Overviews/Instructions
A27: There are 4 sheets after this cover page in the document. You may only edit one of them. You must update the data in "Your Tech - Edit This Sheet" tab.
A28: Input Assumptions: Background data (GHG emissions, energy consumption) and cost for energy and material inputs to iron and steel-making technologies. Do not edit this sheet!
A29: Example - BF-BOF: Process data for BF-BOF this tool's template. Do not edit this sheet, but take a look to see how energy and material flows are modeled.
A30: Your Tech - Edit This Sheet: For all green shaded cells, either leave a zero or add the correct number estimating how much material/energy flow your technology requires at each step of the iron/steelmaking process. For each number entered, provide jusfitifacion in the Justification column. Note all auxiliary processes are also modeled like feedstock production, sintering, skin mill, EAF, etc. You may edit energy and material inputs to these processes as well.
A31: Default values are provided (columns M and N) to allow you to complete the calculation for the cost/emissions for HRC production. If you use the default values, it is recommended to copy the value from the Default Values columns, then ctrl+alt+v paste selecting the "Values" option.
A32: You may add your own energy and material inputs on the "Your Tech - Edit This Sheet" sheet. If you do, you need to estimate how much of that energy/material input you need, its unit cost, and its carbon footprint (upstream and any direct GHG emissions during the iron/steel-making processes).
A33: Comparison: Auto-populated charts and tables fed from inputs on the other sheets of this workbook. Do not edit this sheet! This is for your use only and is not a criterion for a successful proposal.
A35: How to use
A36: Note units on all cells!
A37: Any green shaded cell is editable. Any cell that is not shaded green is NOT EDITABLE.
A38: Cradle-to-gate biogenic carbon uptake and emissions should not be tracked UNLESS biogenic CH4 is directly emitted during the process OR biogenic C is permanently stored in the iron/steel product. Note in your application how much biogenic C (t C/t product) is permanently sequestered in the final iron/steel product (if any).
A39: Sources for input data/assumptions are provided to help you as you document justifications for any changes you make to green shaded cells.
A40: If your technology combines process steps, choose one of them represented in this model to apply your input material and energy consumption data, zero out the other(s), and provide ample justification.
A42: Abbreviations, definitions
A43: All greenhouse gas (GHG) emissions factors are cradle-to-gate (non-biogenic embodied columns) and gate-to-gate (non-biogenic chemical/combustion columns) in terms of CO2-equivalents and utilize 100-year GWP values. If your process directly (i.e. from process chemistry, not from upstream energy production or energy use) emits CH4, N2O, SF6, or other greenhouse gases to the atmosphere, please note this in your application.
A44: "t" always means metric tonne
A46: Request for comments, suggestions, additions
A47: Please send any questions or comments to arpa-e-co@hq.doe.gov

Sheet Your Tech - Edit This Sheet
A1: Your Tech, Standard Case (user to fill in using values from Standard Assumptions in Assumptions tab or Columns M and N as needed)
A2: Input Variable | C2: Value | D2: Units | E2: Value | F2: Amount/t crude steel | G2: Value | H2: Embedded emissions | J2: Value | K2: Process emissions | L2: Justification for Changes | M2: Default Values | N2: Default Values
A4: Capital Costs
A5: Facility Capital Cost ($) | C5: 0 | D5: $ | M5: 600000000
A6: Facility Capacity (tonnes of steel per yr) | C6: 0 | D6: t HRC steel/yr | M6: 40000
A7: Facility Lifetime (yrs) | C7: 0 | D7: yrs | M7: 25
A8: Capital Equipment (tot upfront cost) | C8: =IF(C6*C7>0,C5/C6/C7,0) -> 0 | D8: $/t HRC steel
A9: Cap Equip Annualized | C9: =C8*'Input Assumptions'!C9/('Input Assumptions'!C6/100) -> 0 | D9: $/t HRC steel
A11: Fixed OPEX (assumed a % of capital cost)
A12: Fixed OPEX | C12: =0.085*C8 -> 0 | D12: $/t HRC steel
XFC13: Skin Mill
A15: Iron Feedstock Transportation | B15: Distance (mi)
A16: Barge | B16: 0 | C16: =B16*'Input Assumptions'!$C$38*E16 -> 0 | D16: $/t HRC steel | E16: 0 | F16: t ore/t HRC steel | G16: 0 | H16: t CO2e/t HRC steel | J16: =E16*'Input Assumptions'!$I$38*B16 -> 0 | K16: t CO2e/t HRC steel | M16: 0 | N16: 0
A17: Rail | B17: 0 | C17: =B17*'Input Assumptions'!$C$39*E17 -> 0 | D17: $/t HRC steel | E17: 0 | F17: t ore/t HRC steel | G17: 0 | H17: t CO2e/t HRC steel | J17: =E17*'Input Assumptions'!$I$39*B17 -> 0 | K17: t CO2e/t HRC steel | M17: 700 | N17: 3
A18: Truck | B18: 0 | C18: =B18*'Input Assumptions'!$C$40*E18 -> 0 | D18: $/t HRC steel | E18: 0 | F18: t ore/t HRC steel | G18: 0 | H18: t CO2e/t HRC steel | J18: =E18*'Input Assumptions'!$I$40*B18 -> 0 | K18: t CO2e/t HRC steel | M18: 100 | N18: 3
A21: Energy Inputs to Ironmaking Step ONLY (New Tech)
A22: Natural gas | C22: =E22*'Input Assumptions'!C24 -> 0 | D22: $/t HRC steel | E22: 0 | F22: GJ/t HRC steel | G22: =E22*'Input Assumptions'!F24 -> 0 | H22: t CO2e/t HRC steel | J22: =E22*'Input Assumptions'!I24 -> 0 | K22: t CO2e/t HRC steel | M22: 0
A23: Coke | C23: =E23*'Input Assumptions'!C25 -> 0 | D23: $/t HRC steel | E23: 0 | F23: GJ/t HRC steel | G23: =E23*'Input Assumptions'!F25 -> 0 | H23: t CO2e/t HRC steel | J23: =E23*'Input Assumptions'!I25 -> 0 | K23: t CO2e/t HRC steel | M23: 0
A24: Electricity | C24: =E24*'Input Assumptions'!C27 -> 0 | D24: $/t HRC steel | E24: 0 | F24: GJ/t HRC steel | G24: =E24*'Input Assumptions'!F27 -> 0 | H24: t CO2e/t HRC steel | J24: =E24*'Input Assumptions'!I27 -> 0 | K24: t CO2e/t HRC steel | M24: =CONVERT(2800,"kWh","GJ") -> 10.08
A25: Fossil SMR Hydrogen | C25: =E25*'Input Assumptions'!C28 -> 0 | D25: $/t HRC steel | E25: 0 | F25: GJ/t HRC steel | G25: =E25*'Input Assumptions'!F28 -> 0 | H25: t CO2e/t HRC steel | J25: =E25*'Input Assumptions'!I28 -> 0 | K25: t CO2e/t HRC steel | M25: 0
A26: Fossil SMR+CCS Hydrogen | C26: =E26*'Input Assumptions'!C29 -> 0 | D26: $/t HRC steel | E26: 0 | F26: GJ/t HRC steel | G26: =E26*'Input Assumptions'!F29 -> 0 | H26: t CO2e/t HRC steel | J26: =E26*'Input Assumptions'!I29 -> 0 | K26: t CO2e/t HRC steel | M26: 0
A27: Electrolysis Hydrogen (Today) | C27: =E27*'Input Assumptions'!C30 -> 0 | D27: $/t HRC steel | E27: 0 | F27: GJ/t HRC steel | G27: =E27*'Input Assumptions'!F30 -> 0 | H27: t CO2e/t HRC steel | J27: =E27*'Input Assumptions'!I30 -> 0 | K27: t CO2e/t HRC steel | M27: 0
A28: Fossil Diesel | C28: =E28*'Input Assumptions'!C31 -> 0 | D28: $/t HRC steel | E28: 0 | F28: GJ/t HRC steel | G28: =E28*'Input Assumptions'!F31 -> 0 | H28: t CO2e/t HRC steel | J28: =E28*'Input Assumptions'!I31 -> 0 | K28: t CO2e/t HRC steel | M28: 0
A29: Fossil Gasoline | C29: =E29*'Input Assumptions'!C32 -> 0 | D29: $/t HRC steel | E29: 0 | F29: GJ/t HRC steel | G29: =E29*'Input Assumptions'!F32 -> 0 | H29: t CO2e/t HRC steel | J29: =E29*'Input Assumptions'!I32 -> 0 | K29: t CO2e/t HRC steel | M29: 0
A30: Electricity (Future; Greener) | C30: =E30*'Input Assumptions'!C34 -> 0 | D30: $/t HRC steel | E30: =E24 -> 0 | F30: GJ/t HRC steel | G30: =E30*'Input Assumptions'!F34 -> 0 | H30: t CO2e/t HRC steel | J30: =E30*'Input Assumptions'!I34 -> 0 | K30: t CO2e/t HRC steel | M30: 0
A31: Electrolysis Hydrogen (US; Future; Greener; IRA) | C31: =E31*'Input Assumptions'!C35 -> 0 | D31: $/t HRC steel | E31: =E27 -> 0 | F31: GJ/t HRC steel | G31: =E31*'Input Assumptions'!F35 -> 0 | H31: t CO2e/t HRC steel | J31: =E31*'Input Assumptions'!I35 -> 0 | K31: t CO2e/t HRC steel | M31: 0
A32: Alternate Inputs (user-added) start here | C32: =E32*'Input Assumptions'!C36 -> 0 | D32: $/t HRC steel | E32: 0 | F32: GJ/t HRC steel | G32: =E32*'Input Assumptions'!F36 -> 0 | H32: t CO2e/t HRC steel | J32: =E32*'Input Assumptions'!I36 -> 0 | K32: t CO2e/t HRC steel
A33: Alternate Inputs (user-added) start here | C33: =E33*'Input Assumptions'!C37 -> 0 | D33: $/t HRC steel | E33: 0 | F33: GJ/t HRC steel | G33: =E33*'Input Assumptions'!F37 -> 0 | H33: t CO2e/t HRC steel | J33: =E33*'Input Assumptions'!I37 -> 0 | K33: t CO2e/t HRC steel
A34: Alternate Inputs (user-added) start here | C34: =E34*'Input Assumptions'!C38 -> 0 | D34: $/t HRC steel | E34: 0 | F34: GJ/t HRC steel | G34: =E34*'Input Assumptions'!F38 -> 0 | H34: t CO2e/t HRC steel | J34: =E34*'Input Assumptions'!I38 -> 0 | K34: t CO2e/t HRC steel
A35: Alternate Inputs (user-added) start here | C35: =E35*'Input Assumptions'!C39 -> 0 | D35: $/t HRC steel | E35: 0 | F35: GJ/t HRC steel | G35: =E35*'Input Assumptions'!F39 -> 0 | H35: t CO2e/t HRC steel | J35: =E35*'Input Assumptions'!I39 -> 0 | K35: t CO2e/t HRC steel
A36: Alternate Inputs (user-added) start here | C36: =E36*'Input Assumptions'!C40 -> 0 | D36: $/t HRC steel | E36: 0 | F36: GJ/t HRC steel | G36: =E36*'Input Assumptions'!F40 -> 0 | H36: t CO2e/t HRC steel | J36: =E36*'Input Assumptions'!I40 -> 0 | K36: t CO2e/t HRC steel
A37: Alternate Inputs (user-added) start here | C37: =E37*'Input Assumptions'!C41 -> 0 | D37: $/t HRC steel | E37: 0 | F37: GJ/t HRC steel | G37: =E37*'Input Assumptions'!F41 -> 0 | H37: t CO2e/t HRC steel | J37: =E37*'Input Assumptions'!I41 -> 0 | K37: t CO2e/t HRC steel
A39: Feedstocks to Ironmaking Step ONLY (New Tech)
A40: Iron ore fines (imported) | C40: =E40*'Input Assumptions'!C14 -> 0 | D40: $/t HRC steel | E40: 0 | F40: t Fe/t HRC steel | G40: =E40*SUM(G147:G154) -> 0 | H40: t CO2e/t HRC steel | J40: ='Input Assumptions'!I14*E40 -> 0 | K40: t CO2e/t HRC steel | M40: 0
A41: Iron ore fines (US - Taconite) | C41: =E41*'Input Assumptions'!C15 -> 0 | D41: $/t HRC steel | E41: 0 | F41: t Fe/t HRC steel | G41: =E41*SUM(G159:G166) -> 0 | H41: t CO2e/t HRC steel | J41: ='Input Assumptions'!I15*E41 -> 0 | K41: t CO2e/t HRC steel | M41: 3
A42: Biomass | C42: =E42*'Input Assumptions'!C17 -> 0 | D42: $/t HRC steel | E42: 0 | F42: t biomass/t HRC steel | G42: ='Input Assumptions'!F17*E42 -> 0 | H42: t CO2e/t HRC steel | J42: ='Input Assumptions'!I17*E42 -> 0 | K42: t CO2e/t HRC steel | M42: 0
A43: Biocharcoal | C43: =E43*'Input Assumptions'!C18 -> 0 | D43: $/t HRC steel | E43: 0 | F43: t biocharcoal/t HRC steel | G43: ='Input Assumptions'!F18*E43 -> 0 | H43: t CO2e/t HRC steel | J43: ='Input Assumptions'!I18*E43 -> 0 | K43: t CO2e/t HRC steel | M43: 0
A44: Electrolysis Hydrogen (Today) | C44: =E44*'Input Assumptions'!C19 -> 0 | D44: $/t HRC steel | E44: 0 | F44: t H2/t HRC steel | G44: ='Input Assumptions'!F19*E44 -> 0 | H44: t CO2e/t HRC steel | J44: ='Input Assumptions'!I19*E44 -> 0 | K44: t CO2e/t HRC steel | M44: 0
A45: Lime | C45: =E45*'Input Assumptions'!C20 -> 0 | D45: $/t HRC steel | E45: 0 | F45: t lime/t HRC steel | G45: ='Input Assumptions'!F20*E45 -> 0 | H45: t CO2e/t HRC steel | J45: ='Input Assumptions'!I20*E45 -> 0 | K45: t CO2e/t HRC steel | M45: 0.075
A46: Electrolysis Hydrogen (Future; Greener; IRA credits) | C46: =E46*'Input Assumptions'!C21 -> 0 | D46: $/t HRC steel | E46: =E44 -> 0 | F46: t H2/t HRC steel | G46: ='Input Assumptions'!F21*E46 -> 0 | H46: t CO2e/t HRC steel | J46: ='Input Assumptions'!I21*E46 -> 0 | K46: t CO2e/t HRC steel | M46: 0
A47: Alternate Inputs (user-added) start here | C47: =E47*'Input Assumptions'!C50 -> 0 | D47: $/t HRC steel | E47: 0 | F47: GJ/t HRC steel | G47: =E47*'Input Assumptions'!F50 -> 0 | H47: t CO2e/t HRC steel | J47: =E47*'Input Assumptions'!I50 -> 0 | K47: t CO2e/t HRC steel
A48: Alternate Inputs (user-added) start here | C48: =E48*'Input Assumptions'!C51 -> 0 | D48: $/t HRC steel | E48: 0 | F48: GJ/t HRC steel | G48: =E48*'Input Assumptions'!F51 -> 0 | H48: t CO2e/t HRC steel | J48: =E48*'Input Assumptions'!I51 -> 0 | K48: t CO2e/t HRC steel
A49: Alternate Inputs (user-added) start here | C49: =E49*'Input Assumptions'!C52 -> 0 | D49: $/t HRC steel | E49: 0 | F49: GJ/t HRC steel | G49: =E49*'Input Assumptions'!F52 -> 0 | H49: t CO2e/t HRC steel | J49: =E49*'Input Assumptions'!I52 -> 0 | K49: t CO2e/t HRC steel
A50: Alternate Inputs (user-added) start here | C50: =E50*'Input Assumptions'!C53 -> 0 | D50: $/t HRC steel | E50: 0 | F50: GJ/t HRC steel | G50: =E50*'Input Assumptions'!F53 -> 0 | H50: t CO2e/t HRC steel | J50: =E50*'Input Assumptions'!I53 -> 0 | K50: t CO2e/t HRC steel
A51: Alternate Inputs (user-added) start here | C51: =E51*'Input Assumptions'!C54 -> 0 | D51: $/t HRC steel | E51: 0 | F51: GJ/t HRC steel | G51: =E51*'Input Assumptions'!F54 -> 0 | H51: t CO2e/t HRC steel | J51: =E51*'Input Assumptions'!I54 -> 0 | K51: t CO2e/t HRC steel
A52: Alternate Inputs (user-added) start here | C52: =E52*'Input Assumptions'!C55 -> 0 | D52: $/t HRC steel | E52: 0 | F52: GJ/t HRC steel | G52: =E52*'Input Assumptions'!F55 -> 0 | H52: t CO2e/t HRC steel | J52: =E52*'Input Assumptions'!I55 -> 0 | K52: t CO2e/t HRC steel
A54: Energy Inputs to Steelmaking Step ONLY
A55: Natural Gas | C55: =E55*'Input Assumptions'!C24 -> 0 | D55: $/t HRC steel | E55: 0 | F55: GJ/t HRC | G55: =E55*('Input Assumptions'!F24) -> 0 | H55: t CO2e/t HRC | J55: =E55*('Input Assumptions'!I24) -> 0 | K55: t CO2e/t HRC steel | M55: 0.4948211949
A56: Coke | C56: =E56*'Input Assumptions'!C25 -> 0 | D56: $/t HRC steel | E56: 0 | F56: GJ/t HRC | G56: =E56*('Input Assumptions'!F25) -> 0 | H56: t CO2e/t HRC | J56: =E56*('Input Assumptions'!I25) -> 0 | K56: t CO2e/t HRC steel | M56: 0.1793594949
A57: Electricity | C57: =E57*'Input Assumptions'!C27 -> 0 | D57: $/t HRC steel | E57: 0 | F57: GJ/t HRC | G57: =E57*('Input Assumptions'!F27) -> 0 | H57: t CO2e/t HRC | J57: =E57*('Input Assumptions'!I27) -> 0 | K57: t CO2e/t HRC steel | M57: 1.614235455
A58: Fossil SMR Hydrogen | C58: =E58*'Input Assumptions'!C28 -> 0 | D58: $/t HRC steel | E58: 0 | F58: GJ/t HRC | G58: =E58*('Input Assumptions'!F28) -> 0 | H58: t CO2e/t HRC | J58: =E58*('Input Assumptions'!I28) -> 0 | K58: t CO2e/t HRC steel | M58: 0
A59: Fossil SMR+CCS Hydrogen | C59: =E59*'Input Assumptions'!C29 -> 0 | D59: $/t HRC steel | E59: 0 | F59: GJ/t HRC | G59: =E59*('Input Assumptions'!F29) -> 0 | H59: t CO2e/t HRC | J59: =E59*('Input Assumptions'!I29) -> 0 | K59: t CO2e/t HRC steel | M59: 0
A60: Electrolysis Hydrogen (Today) | C60: =E60*'Input Assumptions'!C30 -> 0 | D60: $/t HRC steel | E60: 0 | F60: GJ/t HRC | G60: =E60*('Input Assumptions'!F30) -> 0 | H60: t CO2e/t HRC | J60: =E60*('Input Assumptions'!I30) -> 0 | K60: t CO2e/t HRC steel | M60: 0
A61: Electricity (Future; Greener) | C61: =E61*'Input Assumptions'!C34 -> 0 | D61: $/t HRC steel | E61: 0 | F61: GJ/t HRC steel | G61: =E61*'Input Assumptions'!F34 -> 0 | H61: t CO2e/t HRC steel | J61: =E61*'Input Assumptions'!I34 -> 0 | K61: t CO2e/t HRC steel | M61: 0
A62: Electrolysis Hydrogen (Future; Greener; IRA) | C62: =E62*'Input Assumptions'!C35 -> 0 | D62: $/t HRC steel | E62: 0 | F62: GJ/t HRC steel | G62: =E62*'Input Assumptions'!F35 -> 0 | H62: t CO2e/t HRC steel | J62: =E62*'Input Assumptions'!I35 -> 0 | K62: t CO2e/t HRC steel | M62: 0
A63: Alternate Inputs (user-added) start here | C63: =E63*'Input Assumptions'!C64 -> 0 | D63: $/t HRC steel | E63: 0 | F63: GJ/t HRC steel | G63: =E63*'Input Assumptions'!F64 -> 0 | H63: t CO2e/t HRC steel | J63: =E63*'Input Assumptions'!I64 -> 0 | K63: t CO2e/t HRC steel
A64: Alternate Inputs (user-added) start here | C64: =E64*'Input Assumptions'!C65 -> 0 | D64: $/t HRC steel | E64: 0 | F64: GJ/t HRC steel | G64: =E64*'Input Assumptions'!F65 -> 0 | H64: t CO2e/t HRC steel | J64: =E64*'Input Assumptions'!I65 -> 0 | K64: t CO2e/t HRC steel
A65: Alternate Inputs (user-added) start here | C65: =E65*'Input Assumptions'!C66 -> 0 | D65: $/t HRC steel | E65: 0 | F65: GJ/t HRC steel | G65: =E65*'Input Assumptions'!F66 -> 0 | H65: t CO2e/t HRC steel | J65: =E65*'Input Assumptions'!I66 -> 0 | K65: t CO2e/t HRC steel
A66: Alternate Inputs (user-added) start here | C66: =E66*'Input Assumptions'!C67 -> 0 | D66: $/t HRC steel | E66: 0 | F66: GJ/t HRC steel | G66: =E66*'Input Assumptions'!F67 -> 0 | H66: t CO2e/t HRC steel | J66: =E66*'Input Assumptions'!I67 -> 0 | K66: t CO2e/t HRC steel
A67: Alternate Inputs (user-added) start here | C67: 0 | D67: $/t HRC steel | E67: 0 | F67: GJ/t HRC steel | G67: =E67*'Input Assumptions'!F68 -> 0 | H67: t CO2e/t HRC steel | J67: =E67*'Input Assumptions'!I68 -> 0 | K67: t CO2e/t HRC steel
A68: Alternate Inputs (user-added) start here | C68: =E68*'Input Assumptions'!C69 -> 0 | D68: $/t HRC steel | E68: 0 | F68: GJ/t HRC steel | G68: =E68*'Input Assumptions'!F69 -> 0 | H68: t CO2e/t HRC steel | J68: =E68*'Input Assumptions'!I69 -> 0 | K68: t CO2e/t HRC steel
A70: Additional Feedstocks to Steelmaking Step ONLY
A71: Iron ore fines (imported) | C71: =E71*'Input Assumptions'!C14 -> 0 | D71: $/t HRC steel | E71: 0 | F71: t Fe/t HRC steel | G71: =E71*SUM(G147:G154) -> 0 | H71: t CO2e/t HRC steel | J71: ='Input Assumptions'!I13*E71 -> 0 | K71: t CO2e/t HRC steel | M71: 0
A72: Iron ore fines (US - Taconite) | C72: =E72*'Input Assumptions'!C15 -> 0 | D72: $/t HRC steel | E72: 0 | F72: t Fe/t HRC steel | G72: =E72*SUM(G159:G166) -> 0 | H72: t CO2e/t HRC steel | J72: ='Input Assumptions'!I14*E72 -> 0 | K72: t CO2e/t HRC steel | M72: 0
A73: Scrap | C73: =E73*'Input Assumptions'!C16 -> 0 | D73: $/t HRC steel | E73: 0 | F73: t scrap/t HRC steel | G73: =E73*'Input Assumptions'!F16 -> 0 | H73: t CO2e/t HRC steel | J73: ='Input Assumptions'!I15*E73 -> 0 | K73: t CO2e/t HRC steel | M73: 0.254
A74: Biomass | C74: =E74*'Input Assumptions'!C17 -> 0 | D74: $/t HRC steel | E74: 0 | F74: t biomass/t HRC steel | G74: ='Input Assumptions'!F16*E74 -> 0 | H74: t CO2e/t HRC steel | J74: ='Input Assumptions'!I16*E74 -> 0 | K74: t CO2e/t HRC steel | M74: 0
A75: Biocharcoal | C75: =E75*'Input Assumptions'!C18 -> 0 | D75: $/t HRC steel | E75: 0 | F75: t biocharcoal/t HRC steel | G75: ='Input Assumptions'!F17*E75 -> 0 | H75: t CO2e/t HRC steel | J75: ='Input Assumptions'!I17*E75 -> 0 | K75: t CO2e/t HRC steel | M75: 0
A76: Electrolysis Hydrogen (Today) | C76: =E76*'Input Assumptions'!C19 -> 0 | D76: $/t HRC steel | E76: 0 | F76: t H2/t HRC steel | G76: ='Input Assumptions'!F18*E76 -> 0 | H76: t CO2e/t HRC steel | J76: ='Input Assumptions'!I18*E76 -> 0 | K76: t CO2e/t HRC steel | M76: 0
A77: Lime | C77: =E77*'Input Assumptions'!C20 -> 0 | D77: $/t HRC steel | E77: 0 | F77: t lime/t HRC steel | G77: ='Input Assumptions'!F19*E77 -> 0 | H77: t CO2e/t HRC steel | J77: ='Input Assumptions'!I19*E77 -> 0 | K77: t CO2e/t HRC steel | M77: 0
A78: Electrolysis Hydrogen (Future; Greener; IRA credits) | C78: =E78*'Input Assumptions'!C21 -> 0 | D78: $/t HRC steel | E78: 0 | F78: t H2/t HRC steel | G78: ='Input Assumptions'!F20*E78 -> 0 | H78: t CO2e/t HRC steel | J78: ='Input Assumptions'!I20*E78 -> 0 | K78: t CO2e/t HRC steel | M78: 0
A79: Alternate Inputs (user-added) start here | C79: =E79*'Input Assumptions'!C79 -> 0 | D79: $/t HRC steel | E79: 0 | F79: GJ/t HRC steel | G79: =E79*'Input Assumptions'!F79 -> 0 | H79: t CO2e/t HRC steel | J79: =E79*'Input Assumptions'!I79 -> 0 | K79: t CO2e/t HRC steel
A80: Alternate Inputs (user-added) start here | C80: =E80*'Input Assumptions'!C80 -> 0 | D80: $/t HRC steel | E80: 0 | F80: GJ/t HRC steel | G80: =E80*'Input Assumptions'!F80 -> 0 | H80: t CO2e/t HRC steel | J80: =E80*'Input Assumptions'!I80 -> 0 | K80: t CO2e/t HRC steel
A81: Alternate Inputs (user-added) start here | C81: =E81*'Input Assumptions'!C81 -> 0 | D81: $/t HRC steel | E81: 0 | F81: GJ/t HRC steel | G81: =E81*'Input Assumptions'!F81 -> 0 | H81: t CO2e/t HRC steel | J81: =E81*'Input Assumptions'!I81 -> 0 | K81: t CO2e/t HRC steel
A82: Alternate Inputs (user-added) start here | C82: =E82*'Input Assumptions'!C82 -> 0 | D82: $/t HRC steel | E82: 0 | F82: GJ/t HRC steel | G82: =E82*'Input Assumptions'!F82 -> 0 | H82: t CO2e/t HRC steel | J82: =E82*'Input Assumptions'!I82 -> 0 | K82: t CO2e/t HRC steel
A83: Alternate Inputs (user-added) start here | C83: =E83*'Input Assumptions'!C83 -> 0 | D83: $/t HRC steel | E83: 0 | F83: GJ/t HRC steel | G83: =E83*'Input Assumptions'!F83 -> 0 | H83: t CO2e/t HRC steel | J83: =E83*'Input Assumptions'!I83 -> 0 | K83: t CO2e/t HRC steel
A84: Alternate Inputs (user-added) start here | C84: =E84*'Input Assumptions'!C22 -> 0 | D84: $/t HRC steel | E84: 0 | F84: t/t HRC steel | G84: ='Input Assumptions'!F20*E84 -> 0 | H84: t CO2e/t HRC steel | J84: ='Input Assumptions'!I20*E84 -> 0 | K84: t CO2e/t HRC steel
A86: Processes | C86: Value | D86: Units | E86: $ or Energy Input | F86: Unit | G86: Value | H86: Combined Embedded + Process Emissions
A87: Hot Rolling (Fixed Costs) | E87: 0 | F87: $/t HRC | M87: 5
A88: Natural Gas | C88: =E88*'Input Assumptions'!C24 -> 0 | D88: $/t HRC | E88: 0 | F88: GJ/t HRC | G88: =E88*('Input Assumptions'!$F$24+'Input Assumptions'!$I$24) -> 0 | H88: t CO2e/t HRC | M88: 0.6646851872
A89: Electricity | C89: =E89*'Input Assumptions'!C27 -> 0 | D89: $/t HRC | E89: 0 | F89: GJ/t HRC | G89: =E89*('Input Assumptions'!$F$27+'Input Assumptions'!$I$27) -> 0 | H89: t CO2e/t HRC | M89: 0.7427593202
A90: Biomass | C90: =E90*'Input Assumptions'!C17 -> 0 | D90: $/t HRC | E90: 0 | F90: t/t HRC | G90: =E90*('Input Assumptions'!$F$17+'Input Assumptions'!$I$17) -> 0 | H90: t CO2e/t HRC | M90: 0
A91: Fossil SMR Hydrogen | C91: =E91*'Input Assumptions'!C29 -> 0 | D91: $/t HRC | E91: 0 | F91: GJ/t HRC | G91: =E91*('Input Assumptions'!$F$28+'Input Assumptions'!$I$28) -> 0 | H91: t CO2e/t HRC | M91: 0
A92: Fossil SMR+CCS Hydrogen | C92: =E92*'Input Assumptions'!C30 -> 0 | D92: $/t HRC | E92: 0 | F92: GJ/t HRC | G92: =E92*('Input Assumptions'!$F$29+'Input Assumptions'!$I$29) -> 0 | H92: t CO2e/t HRC | M92: 0
A93: Electrolysis Hydrogen (Today) | C93: =E93*'Input Assumptions'!C31 -> 0 | D93: $/t HRC | E93: 0 | F93: GJ/t HRC | G93: =E93*('Input Assumptions'!$F$30+'Input Assumptions'!$I$30) -> 0 | H93: t CO2e/t HRC | M93: 0
A94: Electricity (Future; Greener) | C94: =E94*'Input Assumptions'!C34 -> 0 | D94: $/t HRC | E94: =E89 -> 0 | F94: GJ/t HRC | G94: =E94*('Input Assumptions'!$F$34+'Input Assumptions'!$I$34) -> 0 | H94: t CO2e/t HRC
A95: Electrolysis Hydrogen (Future; Greener; IRA credits) | C95: =E95*'Input Assumptions'!C35 -> 0 | D95: $/t HRC | E95: =E93 -> 0 | F95: GJ/t HRC | G95: =E95*('Input Assumptions'!$F$35+'Input Assumptions'!$I$35) -> 0 | H95: t CO2e/t HRC
A97: Sintering (Fixed Costs) | E97: 0 | F97: $/t HRC | M97: 2
A98: Natural Gas | C98: =E98*'Input Assumptions'!C24 -> 0 | D98: $/t HRC | E98: 0 | F98: GJ/t HRC | G98: =E98*('Input Assumptions'!$F$24+'Input Assumptions'!$I$24) -> 0 | H98: t CO2e/t HRC | M98: 0
A99: Electricity | C99: =E99*'Input Assumptions'!C27 -> 0 | D99: $/t HRC | E99: 0 | F99: GJ/t HRC | G99: =E99*('Input Assumptions'!$F$27+'Input Assumptions'!$I$27) -> 0 | H99: t CO2e/t HRC | M99: 0.1614235455
A100: Biomass | C100: =E100*'Input Assumptions'!C17 -> 0 | D100: $/t HRC | E100: 0 | F100: GJ/t HRC | G100: =E100*('Input Assumptions'!$F$17+'Input Assumptions'!$I$17) -> 0 | H100: t CO2e/t HRC | M100: 0
A101: Fossil SMR Hydrogen | C101: =E101*'Input Assumptions'!C29 -> 0 | D101: $/t HRC | E101: 0 | F101: GJ/t HRC | G101: =E101*('Input Assumptions'!$F$28+'Input Assumptions'!$I$28) -> 0 | H101: t CO2e/t HRC | M101: 0
A102: Fossil SMR+CCS Hydrogen | C102: =E102*'Input Assumptions'!C30 -> 0 | D102: $/t HRC | E102: 0 | F102: GJ/t HRC | G102: =E102*('Input Assumptions'!$F$29+'Input Assumptions'!$I$29) -> 0 | H102: t CO2e/t HRC | M102: 0
A103: Electrolysis Hydrogen (Today) | C103: =E103*'Input Assumptions'!C31 -> 0 | D103: $/t HRC | E103: 0 | F103: GJ/t HRC | G103: =E103*('Input Assumptions'!$F$30+'Input Assumptions'!$I$30) -> 0 | H103: t CO2e/t HRC | M103: 0
A104: Coke | C104: =E104*'Input Assumptions'!C25 -> 0 | D104: $/t HRC | E104: 0 | F104: GJ/t HRC | G104: =E104*('Input Assumptions'!$F$25+'Input Assumptions'!$I$25) -> 0 | H104: t CO2e/t HRC | M104: 1.163726605
A105: Electricity (Future; Greener) | C105: =E105*'Input Assumptions'!C45 -> 0 | D105: $/t HRC | E105: =E99 -> 0 | F105: GJ/t HRC | G105: =E105*('Input Assumptions'!$F$34+'Input Assumptions'!$I$34) -> 0 | H105: t CO2e/t HRC
A106: Electrolysis Hydrogen (Future; Greener; IRA credits) | C106: =E106*'Input Assumptions'!C46 -> 0 | D106: $/t HRC | E106: =E103 -> 0 | F106: GJ/t HRC | G106: =E106*('Input Assumptions'!$F$35+'Input Assumptions'!$I$35) -> 0 | H106: t CO2e/t HRC
A108: Stamping (Fixed Costs) | E108: 0 | F108: $/t HRC | M108: 2
A109: Natural Gas | C109: =E109*'Input Assumptions'!C24 -> 0 | D109: $/t HRC | E109: 0 | F109: GJ/t HRC | G109: =E109*('Input Assumptions'!$F$24+'Input Assumptions'!$I$24) -> 0 | H109: t CO2e/t HRC | M109: 0
A110: Electricity | C110: =E110*'Input Assumptions'!C27 -> 0 | D110: $/t HRC | E110: 0 | F110: GJ/t HRC | G110: =E110*('Input Assumptions'!$F$27+'Input Assumptions'!$I$27) -> 0 | H110: t CO2e/t HRC | M110: 0.9073480333
A111: Biomass | C111: =E111*'Input Assumptions'!C17 -> 0 | D111: $/t HRC | E111: 0 | F111: GJ/t HRC | G111: =E111*('Input Assumptions'!$F$17+'Input Assumptions'!$I$17) -> 0 | H111: t CO2e/t HRC | M111: 0
A112: Fossil SMR Hydrogen | C112: =E112*'Input Assumptions'!C28 -> 0 | D112: $/t HRC | E112: 0 | F112: GJ/t HRC | G112: =E112*('Input Assumptions'!$F$28+'Input Assumptions'!$I$28) -> 0 | H112: t CO2e/t HRC | M112: 0
A113: Fossil SMR+CCS Hydrogen | C113: =E113*'Input Assumptions'!C29 -> 0 | D113: $/t HRC | E113: 0 | F113: GJ/t HRC | G113: =E113*('Input Assumptions'!$F$29+'Input Assumptions'!$I$29) -> 0 | H113: t CO2e/t HRC | M113: 0
A114: Electrolysis Hydrogen (Today) | C114: =E114*'Input Assumptions'!C30 -> 0 | D114: $/t HRC | E114: 0 | F114: GJ/t HRC | G114: =E114*('Input Assumptions'!$F$30+'Input Assumptions'!$I$30) -> 0 | H114: t CO2e/t HRC | M114: 0
A115: Electricity (Future; Greener) | C115: =E115*'Input Assumptions'!C55 -> 0 | D115: $/t HRC | E115: =E110 -> 0 | F115: GJ/t HRC | G115: =E115*('Input Assumptions'!$F$34+'Input Assumptions'!$I$34) -> 0 | H115: t CO2e/t HRC
A116: Electrolysis Hydrogen (Future; Greener; IRA credits) | C116: =E116*'Input Assumptions'!C56 -> 0 | D116: $/t HRC | E116: =E114 -> 0 | F116: GJ/t HRC | G116: =E116*('Input Assumptions'!$F$35+'Input Assumptions'!$I$35) -> 0 | H116: t CO2e/t HRC
A118: Skin Mill (Fixed Costs) | E118: 0 | F118: $/t HRC | M118: 1
A119: Natural Gas | C119: =E119*'Input Assumptions'!C24 -> 0 | D119: $/t HRC | E119: 0 | F119: GJ/t HRC | G119: =E119*('Input Assumptions'!$F$24+'Input Assumptions'!$I$24) -> 0 | H119: t CO2e/t HRC | M119: 0
A120: Electricity | C120: =E120*'Input Assumptions'!C27 -> 0 | D120: $/t HRC | E120: 0 | F120: GJ/t HRC | G120: =E120*('Input Assumptions'!$F$27+'Input Assumptions'!$I$27) -> 0 | H120: t CO2e/t HRC | M120: 0.04431234581
A121: Biomass | C121: =E121*'Input Assumptions'!C17 -> 0 | D121: $/t HRC | E121: 0 | F121: GJ/t HRC | G121: =E121*('Input Assumptions'!$F$17+'Input Assumptions'!$I$17) -> 0 | H121: t CO2e/t HRC | M121: 0
A122: Fossil SMR Hydrogen | C122: =E122*'Input Assumptions'!C28 -> 0 | D122: $/t HRC | E122: 0 | F122: GJ/t HRC | G122: =E122*('Input Assumptions'!$F$28+'Input Assumptions'!$I$28) -> 0 | H122: t CO2e/t HRC | M122: 0
A123: Fossil SMR+CCS Hydrogen | C123: =E123*'Input Assumptions'!C29 -> 0 | D123: $/t HRC | E123: 0 | F123: GJ/t HRC | G123: =E123*('Input Assumptions'!$F$29+'Input Assumptions'!$I$29) -> 0 | H123: t CO2e/t HRC | M123: 0
A124: Electrolysis Hydrogen (Today) | C124: =E124*'Input Assumptions'!C30 -> 0 | D124: $/t HRC | E124: 0 | F124: GJ/t HRC | G124: =E124*'Input Assumptions'!$F$30+'Input Assumptions'!$I$30 -> 0 | H124: t CO2e/t HRC | M124: 0
A125: Electricity (Future; Greener) | C125: =E125*'Input Assumptions'!C65 -> 0 | D125: $/t HRC | E125: =E120 -> 0 | F125: GJ/t HRC | G125: =E125*('Input Assumptions'!$F$34+'Input Assumptions'!$I$34) -> 0 | H125: t CO2e/t HRC
A126: Electrolysis Hydrogen (Future; Greener; IRA credits) | C126: =E126*'Input Assumptions'!C66 -> 0 | D126: $/t HRC | E126: =E124 -> 0 | F126: GJ/t HRC | G126: =E126*('Input Assumptions'!$F$35+'Input Assumptions'!$I$35) -> 0 | H126: t CO2e/t HRC
A128: EAF
A129: EAF Capital Cost ($) | E129: 0 | F129: $ | M129: 310000000
A130: EAF Capacity (tonnes steel/yr) | E130: 0 | F130: t HRC/yr | M130: 20000
A131: EAF Lifetime (yrs) | E131: 0 | F131: yr | M131: 50
A132: Electric arc furnace (tot upfront cost) | E132: =IF(E130*E131>0,E129/E130/E131,0) -> 0 | F132: $/tonne HRC
A133: Fixed CAPEX Electric arc furnace (annualized) | E133: =E132*'Input Assumptions'!C9/('Input Assumptions'!C6*0.01) -> 0 | F133: $/tonne HRC
A134: Natural Gas | C134: =E134*'Input Assumptions'!C24 -> 0 | D134: $/t HRC | E134: 0 | F134: GJ/t HRC | G134: =E134*('Input Assumptions'!$F$24+'Input Assumptions'!$I$24) -> 0 | H134: t CO2e/t HRC | M134: 0
A135: Electricity | C135: =E135*'Input Assumptions'!C27 -> 0 | D135: $/t HRC | E135: 0 | F135: GJ/t HRC | G135: =E135*('Input Assumptions'!$F$27+'Input Assumptions'!$I$27) -> 0 | H135: t CO2e/t HRC | M135: 0
A136: Biomass | C136: =E136*'Input Assumptions'!C17 -> 0 | D136: $/t HRC | E136: 0 | F136: GJ/t HRC | G136: =E136*('Input Assumptions'!$F$17+'Input Assumptions'!$I$17) -> 0 | H136: t CO2e/t HRC | M136: 0
A137: Fossil SMR Hydrogen | C137: =E137*'Input Assumptions'!C28 -> 0 | D137: $/t HRC | E137: 0 | F137: GJ/t HRC | G137: =E137*('Input Assumptions'!$F$28+'Input Assumptions'!$I$28) -> 0 | H137: t CO2e/t HRC | M137: 0
A138: Fossil SMR+CCS Hydrogen | C138: =E138*'Input Assumptions'!C29 -> 0 | D138: $/t HRC | E138: 0 | F138: GJ/t HRC | G138: =E138*('Input Assumptions'!$F$29+'Input Assumptions'!$I$29) -> 0 | H138: t CO2e/t HRC | M138: 0
A139: Electrolysis Hydrogen (Today) | C139: =E139*'Input Assumptions'!C30 -> 0 | D139: $/t HRC | E139: 0 | F139: GJ/t HRC | G139: =E139*('Input Assumptions'!$F$30+'Input Assumptions'!$I$30) -> 0 | H139: t CO2e/t HRC | M139: 0
A140: Coke | C140: =E140*'Input Assumptions'!C25 -> 0 | D140: $/t HRC | E140: 0 | F140: GJ/t HRC | G140: =E140*('Input Assumptions'!$F$25+'Input Assumptions'!$I$25) -> 0 | H140: t CO2e/t HRC | M140: 0
A141: Scrap | C141: =E141*'Input Assumptions'!C16 -> 0 | D141: $/t HRC | E141: 0 | F141: t/t HRC | G141: =E141*('Input Assumptions'!$F$16+'Input Assumptions'!$I$16) -> 0 | H141: t CO2e/t HRC | M141: 0
A142: Iron Ore | C142: =E142*'Input Assumptions'!C14 -> 0 | D142: $/t HRC | E142: 0 | F142: t/t HRC | G142: =E142*'Input Assumptions'!$F$15 -> 0 | H142: t CO2e/t HRC | M142: 0
A143: Electricity (Future; Greener) | C143: =E143*'Input Assumptions'!C80 -> 0 | D143: $/t HRC | E143: =E136 -> 0 | F143: GJ/t HRC | G143: =E143*('Input Assumptions'!$F$34+'Input Assumptions'!$I$34) -> 0 | H143: t CO2e/t HRC
A144: Electrolysis Hydrogen (Future; Greener; IRA credits) | C144: =E144*'Input Assumptions'!C81 -> 0 | D144: $/t HRC | E144: =E139 -> 0 | F144: GJ/t HRC | G144: =E144*('Input Assumptions'!$F$35+'Input Assumptions'!$I$35) -> 0 | H144: t CO2e/t HRC
A146: Extraction + Beneficiation (Imported high quality)
A147: Natural Gas | C147: =E147*'Input Assumptions'!C24 -> 0 | D147: $/t HRC | E147: 0 | F147: GJ/t Fe (adjusted for Fe content in ore) | G147: =E147*('Input Assumptions'!$F$24+'Input Assumptions'!$I$24) -> 0 | H147: t CO2e/t Fe (adjusted for Fe content in ore) | M147: 0.0136136239
A148: Electricity | C148: =E148*'Input Assumptions'!C27 -> 0 | D148: $/t HRC | E148: 0 | F148: GJ/t Fe (adjusted for Fe content in ore) | G148: =E148*('Input Assumptions'!$F$27+'Input Assumptions'!$I$27) -> 0 | H148: t CO2e/t Fe (adjusted for Fe content in ore) | M148: 0.1344345361
A149: Biomass | C149: =E149*'Input Assumptions'!C17 -> 0 | D149: $/t HRC | E149: 0 | F149: GJ/t Fe (adjusted for Fe content in ore) | G149: =E149*('Input Assumptions'!$F$17+'Input Assumptions'!$I$17) -> 0 | H149: t CO2e/t Fe (adjusted for Fe content in ore) | M149: 0
A150: Fossil SMR Hydrogen | C150: =E150*'Input Assumptions'!C28 -> 0 | D150: $/t HRC | E150: 0 | F150: GJ/t Fe (adjusted for Fe content in ore) | G150: =E150*('Input Assumptions'!$F$28+'Input Assumptions'!$I$28) -> 0 | H150: t CO2e/t Fe (adjusted for Fe content in ore) | M150: 0
A151: Fossil SMR+CCS Hydrogen | C151: =E151*'Input Assumptions'!C29 -> 0 | D151: $/t HRC | E151: 0 | F151: GJ/t Fe (adjusted for Fe content in ore) | G151: =E151*('Input Assumptions'!$F$29+'Input Assumptions'!$I$29) -> 0 | H151: t CO2e/t Fe (adjusted for Fe content in ore) | M151: 0
A152: Electrolysis Hydrogen (Today) | C152: =E152*'Input Assumptions'!C30 -> 0 | D152: $/t HRC | E152: 0 | F152: GJ/t Fe (adjusted for Fe content in ore) | G152: =E152*('Input Assumptions'!$F$30+'Input Assumptions'!$I$30) -> 0 | H152: t CO2e/t Fe (adjusted for Fe content in ore) | M152: 0
A153: Fossil Diesel | C153: =E153*'Input Assumptions'!C31 -> 0 | D153: $/t HRC | E153: 0 | F153: GJ/t Fe (adjusted for Fe content in ore) | G153: =E153*('Input Assumptions'!$F$31+'Input Assumptions'!$I$31) -> 0 | H153: t CO2e/t Fe (adjusted for Fe content in ore) | M153: 0.04764768367
A154: Fossil Gasoline | C154: =E154*'Input Assumptions'!C32 -> 0 | D154: $/t HRC | E154: 0 | F154: GJ/t Fe (adjusted for Fe content in ore) | G154: =E154*('Input Assumptions'!$F$32+'Input Assumptions'!$I$32) -> 0 | H154: t CO2e/t Fe (adjusted for Fe content in ore) | M154: 0.003403405976
A155: Electricity (Future; Greener) | C155: =E155*'Input Assumptions'!C92 -> 0 | D155: $/t HRC | E155: =E148 -> 0 | F155: GJ/t Fe (adjusted for Fe content in ore) | G155: =E155*('Input Assumptions'!$F$34+'Input Assumptions'!$I$34) -> 0 | H155: t CO2e/t Fe (adjusted for Fe content in ore)
A156: Electrolysis Hydrogen (Future; Greener; IRA credits) | C156: =E156*'Input Assumptions'!C93 -> 0 | D156: $/t HRC | E156: =E152 -> 0 | F156: GJ/t Fe (adjusted for Fe content in ore) | G156: =E156*('Input Assumptions'!$F$35+'Input Assumptions'!$I$35) -> 0 | H156: t CO2e/t Fe (adjusted for Fe content in ore)
A158: Extraction + Beneficiation (US Taconite)
A159: Natural Gas | C159: =E159*'Input Assumptions'!C24 -> 0 | D159: $/t HRC | E159: 0 | F159: GJ/t Fe (adjusted for Fe content in ore) | G159: =E159*('Input Assumptions'!$F$24+'Input Assumptions'!$I$24) -> 0 | H159: t CO2e/t Fe (adjusted for Fe content in ore) | M159: 0.03376178728
A160: Electricity | C160: =E160*'Input Assumptions'!C27 -> 0 | D160: $/t HRC | E160: 0 | F160: GJ/t Fe (adjusted for Fe content in ore) | G160: =E160*('Input Assumptions'!$F$27+'Input Assumptions'!$I$27) -> 0 | H160: t CO2e/t Fe (adjusted for Fe content in ore) | M160: 0.3333976494
A161: Biomass | C161: =E161*'Input Assumptions'!C17 -> 0 | D161: $/t HRC | E161: 0 | F161: GJ/t Fe (adjusted for Fe content in ore) | G161: =E161*('Input Assumptions'!$F$17+'Input Assumptions'!$I$17) -> 0 | H161: t CO2e/t Fe (adjusted for Fe content in ore) | M161: 0
A162: Fossil SMR Hydrogen | C162: =E162*'Input Assumptions'!C28 -> 0 | D162: $/t HRC | E162: 0 | F162: GJ/t Fe (adjusted for Fe content in ore) | G162: =E162*('Input Assumptions'!$F$28+'Input Assumptions'!$I$28) -> 0 | H162: t CO2e/t Fe (adjusted for Fe content in ore) | M162: 0
A163: Fossil SMR+CCS Hydrogen | C163: =E163*'Input Assumptions'!C29 -> 0 | D163: $/t HRC | E163: 0 | F163: GJ/t Fe (adjusted for Fe content in ore) | G163: =E163*('Input Assumptions'!$F$29+'Input Assumptions'!$I$29) -> 0 | H163: t CO2e/t Fe (adjusted for Fe content in ore) | M163: 0
A164: Electrolysis Hydrogen (Today) | C164: =E164*'Input Assumptions'!C30 -> 0 | D164: $/t HRC | E164: 0 | F164: GJ/t Fe (adjusted for Fe content in ore) | G164: =E164*('Input Assumptions'!$F$30+'Input Assumptions'!$I$30) -> 0 | H164: t CO2e/t Fe (adjusted for Fe content in ore) | M164: 0
A165: Fossil Diesel | C165: =E165*'Input Assumptions'!C31 -> 0 | D165: $/t HRC | E165: 0 | F165: GJ/t Fe (adjusted for Fe content in ore) | G165: =E165*('Input Assumptions'!$F$31+'Input Assumptions'!$I$31) -> 0 | H165: t CO2e/t Fe (adjusted for Fe content in ore) | M165: 0.1181662555
A166: Fossil Gasoline | C166: =E166*'Input Assumptions'!C32 -> 0 | D166: $/t HRC | E166: 0 | F166: GJ/t Fe (adjusted for Fe content in ore) | G166: =E166*('Input Assumptions'!$F$32+'Input Assumptions'!$I$32) -> 0 | H166: t CO2e/t Fe (adjusted for Fe content in ore) | M166: 0.008440446821
A167: Electricity (Future; Greener) | C167: =E167*'Input Assumptions'!C104 -> 0 | D167: $/t HRC | E167: =E160 -> 0 | F167: GJ/t Fe (adjusted for Fe content in ore) | G167: =E167*('Input Assumptions'!$F$34+'Input Assumptions'!$I$34) -> 0 | H167: t CO2e/t Fe (adjusted for Fe content in ore)
A168: Electrolysis Hydrogen (Future; Greener; IRA credits) | C168: =E168*'Input Assumptions'!C105 -> 0 | D168: $/t HRC | E168: =E164 -> 0 | F168: GJ/t Fe (adjusted for Fe content in ore) | G168: =E168*('Input Assumptions'!$F$35+'Input Assumptions'!$I$35) -> 0 | H168: t CO2e/t Fe (adjusted for Fe content in ore)

Sheet Input Assumptions
A1: Assumptions
A2: Instructions: Standard assumptions are provided below; do not change them.
A3: Input Variable | C3: Value | D3: Cost Units | F3: Value | G3: Non-biogenic Embodied Emissions Unit | I3: Value | J3: Non-biogenic Process Emissions (i.e. chemical or combustion) | K3: Cost Reference | L3: Emissions Reference
A5: Operational Assumptions
A6: Equipment availability | C6: 95 | D6: % | K6: IEA Iron & Steel Roadmap, Oct. 2020 (IEA, 2020) Fig 1.3 | L6: n/a
A7: Equipment lifetime | C7: 25 | D7: years | K7: IEA, 2020 Fig 1.3 | L7: n/a
A8: Cost of capital | C8: 8 | D8: % | K8: IEA, 2020 Fig 1.3 | L8: n/a
A9: Capital recovery factor (CRF) | C9: =(C8/100*(1+C8/100)^C7)/((1+C8/100)^C7-1) -> 0.09367877905 | K9: Calculated from above | L9: n/a
A10: Carbon capture rate | C10: 90 | D10: % | K10: climate.mit.edu/ask-mit/how-efficient-carbon-capture-and-storage | L10: n/a
A11: On-site Hydrogen Electrolyzer Energy Consumpition | C11: 52 | D11: kWh/kg H2
A13: Feedstock Assumptions | B13: %Fe
A14: Iron ore fines (imported) | B14: 0.62 | C14: 106 | D14: $/tonne Fe | F14: =SUM('Example - BF-BOF'!H107:H114) -> 0.02020687213 | G14: t CO2e/t Fe | I14: 0 | J14: t CO2e/t Fe | K14: USGS Mineral Yearbook 2021 | L14: GREET2 2022 Iron Ore Extraction & Processing on Steel Sheet | M14: SGX TSI Iron Ore mean price 2015-2020, https://www.barchart.com/futures/quotes/J-M20
A15: Iron ore fines (US - Taconite) | B15: 0.25 | C15: 114 | D15: $/tonne Fe | F15: =SUM('Example - BF-BOF'!H119:H126) -> 0.05011304289 | G15: t CO2e/t Fe | I15: 0 | J15: t CO2e/t Fe | K15: Internal estimate
A16: Scrap | B16: 0.98 | C16: 400 | D16: $/tonne Fe | F16: 0.2 | G16: t CO2e/t Fe | I16: 0 | J16: t CO2e/t Fe | K16: IEA, 2020 Fig 1.3 | L16: Ashby, Michael F. 'Materials and the Environment: Eco-informed Material Choice', Butterworth Heinemann, 2009. 2nd Edition 2012 ISBN 9780123859716
A17: Biomass | C17: 3.7 | D17: $/GJ | F17: 0.07 | G17: t CO2e/t dry biomass | I17: 0 | J17: t CO2e/t dry biomass | K17: Assume $60/dry ton from 2016 Billion Ton Study and ~18 MJ/kg | L17: GREET2020: poplar combined feedstock emissions
A18: Biocharcoal | C18: 300 | D18: tonne | F18: =AVERAGE((19.38+0.67+18.39+1.34),(21.76+12.03+1.34+1.34))/1000+0.0308 -> 0.068925 | G18: t CO2e/t biocharcoal | I18: 0 | J18: t CO2e / t biocharcoal | K18: Internal projection for 2050 | L18: Page 24 and Appendices 5 and 6 of "Life Cycle Assessment and Carbon Footprint for the Production of Biochar as an Alternative of Soil Remediation," Alfonso R. Rodriguez, 2013
A19: Electrolysis Hydrogen (Today) | C19: 5 | D19: $/kg H2 | F19: =C11*F26/1000 -> 20.124 | G19: kg CO2/kg H2 | I19: 0 | J19: t CO2e/t H2 | L19: Electrolysis H2 embodied emissions from grid intensity assumption. Assume 52 kWh/kg H2 for electrolysis, purification, separation, compression, conveyance.
A20: Lime | C20: 140 | D20: $/tonne lime | F20: 0.011 | G20: t CO2e/t lime | I20: 0 | J20: t CO2e/t lime | K20: Assume quicklime from https://pubs.usgs.gov/periodicals/mcs2022/mcs2022-lime.pdf | L20: All emissions are embedded for the material
A21: Electrolysis Hydrogen (Future; Greener; IRA credits) | C21: 2 | D21: $/kg H2 | F21: =C11*F33/1000 -> 3.64 | G21: kg CO2/kg H2 | I21: 0 | J21: t CO2e/t H2
A23: Fuel Assumptions
A24: Natural gas | C24: 2.59 | D24: $/GJ | F24: 0.011 | G24: t CO2e/GJ LHV | I24: 0.067 | J24: t CO2e/GJ LHV | K24: NG spot prices | L24: Natural gas process emissions if fully combusted; GREET2020
A25: Coke | C25: 2.39 | D25: $/GJ | F25: 0.006 | G25: t CO2e/GJ | I25: 0.11 | J25: t CO2e/GJ | K25: Internal estimate | L25: Coke/coal process emissions if fully combusted; Coal to coking plants GREET2020. Use combustion emissions only if not using blast furnace/coke oven gas downstream.
A26: Electricity | C26: 0.07 | D26: $/kWh | F26: 387 | G26: g CO2e/kWh | I26: =F26 -> 387 | J26: g CO2e/kWh | L26: EIA Outlook for 2023 national grid mix.
A27: Electricity | C27: =C26*CONVERT(1,"GJ","kWh") -> 19.44444444 | D27: $/GJ | F27: =F26/1000000/0.0036 -> 0.1075 | G27: t CO2e/GJ | I27: 0 | J27: t CO2e/GJ | K27: Equivalent values to row 25; given here in alternate units | L27: Assume ~90% reduction from 2020 national average grid using solar and wind
A28: Fossil SMR Hydrogen (US) | C28: 16.7 | D28: $/GJ | F28: 0.095 | G28: t CO2e/GJ | I28: 0 | J28: t CO2e/GJ | K28: Spot price | L28: GREET 2022 plus leakage rate for Iron & Steel and indirect GWP of H2 gas from https://www.energypolicy.columbia.edu/research/commentary/hydrogen-leakage-potential-risk-hydrogen-economy
A29: Fossil SMR+CCS Hydrogen (US) | C29: 25 | D29: $/GJ | F29: 0.045 | G29: t CO2e/GJ | I29: 0 | J29: t CO2e/GJ | L29: GREET 2022 plus leakage rate for Iron & Steel from and indirect GWP of H2 gas from https://www.energypolicy.columbia.edu/research/commentary/hydrogen-leakage-potential-risk-hydrogen-economy
A30: Electrolysis Hydrogen (Today's US Avg Grid) | C30: =C19/120*1000 -> 41.66666667 | D30: $/GJ | F30: =C11*F26/120/1000 -> 0.1677 | G30: t CO2e/GJ | I30: 0 | J30: t CO2e/GJ | K30: Assume 120 MJ/kg LHV
A31: Fossil Diesel | C31: =35*CONVERT(1,"GJ","BTU")/1000000 -> 33.17359921 | D31: $/GJ | F31: 0.016 | G31: t CO2e/GJ | I31: 0.076 | J31: t CO2e/GJ | K31: Spot/commodity price | L31: GREET 2022 conventional fossil diesel
A32: Fossil Gasoline | C32: =30*CONVERT(1,"GJ","BTU")/1000000 -> 28.43451361 | D32: $/GJ | F32: 0.018 | G32: t CO2e/GJ | I32: 0.073 | J32: t CO2e/GJ | K32: Spot/commodity price | L32: GREET 2022 conventional fossil gasoline
A33: Electricity (Future; Greener) | C33: 0.07 | D33: $/kWh | F33: 70 | G33: g CO2e/kWh | I33: =F33 -> 70 | J33: g CO2e/kWh | K33: Internal renewable mix of PV solar and wind (approximately 90%) and 10% NGCC. Cis of each taken from GREET1 2022.
A34: Electricity (Future; Greener) | C34: =C33*CONVERT(1,"GJ","kWh") -> 19.44444444 | D34: $/GJ | F34: =F33/1000000/0.0036 -> 0.01944444444 | G34: t CO2e/GJ | I34: 0 | J34: t CO2e/GJ | K34: Equivalent values to row 32; given here in alternate units
A35: Electrolysis Hydrogen (US; Future; Greener; IRA) | C35: =30*CONVERT(1,"GJ","BTU")/1000000 -> 28.43451361 | D35: $/GJ | F35: =C11*F33/120/1000 -> 0.03033333333 | G35: t CO2e/GJ | I35: 0 | J35: t CO2e/GJ | K35: Assume 120 MJ/kg LHV
A37: Transportation Assumptions | L37: Note: all emissions associated with construction, maintenance, and dispoal of transport vehicles as well as production of the fuels are all aggregated into the numbers in column I
A38: Shipping solids worldwide (ocean) | C38: 0.02 | D38: $/tonne-mile | F38: 0 | G38: tonne CO2e/tonne-mile freight | I38: =6.95/1000000 -> 6.95e-06 | J38: tonne CO2e/tonne-mile freight | K38: https://www.steelonthenet.com/freight.html; internal estimate | L38: GREET2020; Sea transit HFO (0.5% S fuel).
A39: Rail | C39: 0.03 | D39: $/tonne-mile | F39: 0 | G39: tonne CO2e/tonne-mile freight | I39: =41.3/1000000 -> 4.13e-05 | J39: tonne CO2e/tonne-mile freight | K39: Trains Magazine, https://cs.trains.com/trn/f/111/p/187338/2048866.aspx#:~:text=The%20average%20rate%20per%20ton-mile%20%28one%20ton%20of,year%202009%2C%20the%20average%20rate%20was%203.011%20cents. | L39: GREET 2020; diesel rail
A40: Diesel Truck | C40: 0.06 | D40: $/tonne-mile | F40: 0 | G40: tonne CO2e/tonne-mile freight | I40: =114.5/1000000 -> 0.0001145 | J40: tonne CO2e/tonne-mile freight | K40: Internal estimate | L40: GREET 2020; long haul diesel trucking (assumed payload of 19.1 U.S. short tons)
A43: BF-BOF Assumptions
A44: BF-BOF (tot upfront cost) | C44: 600 | D44: $/t crude steel
A45: BF-BOF (annualized) | C45: =C44*C9/(C6*0.01) -> 59.16554466 | D45: $/t crude steel
A48: EAF Assumptions
A49: Electric arc furnace (tot upfront cost) | C49: 310 | D49: $/tonne HRC
A50: Electric arc furnace (annualized) | C50: =C49*C9/(C6*0.01) -> 30.56886474 | D50: $/tonne HRC | L50: Internal calcs; assumes state-of-art NG and solid carbon fuels inserted

Sheet Example - BF-BOF
A1: BF-BOF Pathway to HRC
A2: Input Variable | D2: Value | E2: Cost Units | F2: Value | G2: Amount/t crude steel | H2: Value | I2: Embedded emissions | K2: Value | L2: Process emissions | M2: Justification for Changes | N2: Source
A4: Capital Equipment
A5: Facility Capital Cost ($) | D5: 600000000 | E5: $
A6: Facility Capacity (tonnes of steel per yr) | D6: 40000 | E6: t HRC/yr
A7: Facility Lifetime (yrs) | D7: 25 | E7: yr
A8: BF + BOF (total upfront cost) | D8: =D5/D6/D7 -> 600 | E8: $/t HRC
A9: BF + BOF Annualized per Tonne Steel | D9: =D8*'Input Assumptions'!C9/('Input Assumptions'!C6/100) -> 59.16554466 | E9: $/t HRC
A11: Fixed OPEX (assumed a % of capital cost)
A12: Fixed OPEX | D12: =D8*0.085 -> 51 | E12: $/t HRC
A15: Transportation | C15: Distance (mi)
A16: Barge | C16: 0 | D16: =C16*'Input Assumptions'!$C$38*F16 -> 0 | E16: $/t HRC steel | F16: 0 | G16: t ore/t HRC steel | H16: 0 | I16: t CO2e/t HRC steel | K16: =F16*'Input Assumptions'!$I$38*C16 -> 0 | L16: t CO2e/t HRC steel | N16: GREET1 2022. Fuel Embedded emissions are wrapped into the "process emissions" column as well as combustion.
A17: Rail | C17: 800 | D17: =C17*'Input Assumptions'!$C$39*F17 -> 96 | E17: $/t HRC steel | F17: 4 | G17: t ore/t HRC steel | H17: 0 | I17: t CO2e/t HRC steel | K17: =F17*'Input Assumptions'!$I$39*C17 -> 0.13216 | L17: t CO2e/t HRC steel | N17: GREET1 2022. Fuel Embedded emissions are wrapped into the "process emissions" column as well as combustion.
A18: Truck | C18: 50 | D18: =C18*'Input Assumptions'!$C$40*F18 -> 15 | E18: $/t HRC steel | F18: 5 | G18: t ore/t HRC steel | H18: 0 | I18: t CO2e/t HRC steel | K18: =F18*'Input Assumptions'!$I$40*C18 -> 0.028625 | L18: t CO2e/t HRC steel | N18: GREET1 2022. Fuel Embedded emissions are wrapped into the "process emissions" column as well as combustion.
A20: Energy Inputs to Ironmaking Step ONLY (Blast Furnace)
A21: Natural gas | D21: =F21*'Input Assumptions'!C24 -> 3.99505339 | E21: $/t HRC steel | F21: =CONVERT(1.462*1000000,"BTU","GJ") -> 1.542491657 | G21: GJ/t HRC steel | H21: =F21*'Input Assumptions'!F24 -> 0.01696740822 | I21: t CO2e/t HRC steel | K21: =F21*'Input Assumptions'!I24 -> 0.103346941 | L21: t CO2e/t HRC steel
A22: Coke | D22: =F22*'Input Assumptions'!C25 -> 25.04688878 | E22: $/t HRC steel | F22: =CONVERT(9.933*1000000,"BTU","GJ") -> 10.47986978 | G22: GJ/t HRC steel | H22: =F22*'Input Assumptions'!F25 -> 0.0628792187 | I22: t CO2e/t HRC steel | K22: =F22*'Input Assumptions'!I25 -> 1.152785676 | L22: t CO2e/t HRC steel
A23: Electricity | D23: =F23*'Input Assumptions'!C27 -> 4.71844423 | E23: $/t HRC steel | F23: =CONVERT(0.23*1000000,"BTU","GJ") -> 0.2426628461 | G23: GJ/t HRC steel | H23: =F23*'Input Assumptions'!F27 -> 0.02608625596 | I23: t CO2e/t HRC steel | K23: =F23*'Input Assumptions'!I27 -> 0 | L23: t CO2e/t HRC steel
A24: Fossil SMR Hydrogen (US) | D24: =F24*'Input Assumptions'!C28 -> 0 | E24: $/t HRC steel | F24: 0 | G24: GJ/t HRC steel | H24: =F24*'Input Assumptions'!F28 -> 0 | I24: t CO2e/t HRC steel | K24: =F24*'Input Assumptions'!I28 -> 0 | L24: t CO2e/t HRC steel
A25: Fossil SMR+CCS Hydrogen (US) | D25: =F25*'Input Assumptions'!C29 -> 0 | E25: $/t HRC steel | F25: 0 | G25: GJ/t HRC steel | H25: =F25*'Input Assumptions'!F29 -> 0 | I25: t CO2e/t HRC steel | K25: =F25*'Input Assumptions'!I29 -> 0 | L25: t CO2e/t HRC steel
A26: Electrolysis Hydrogen (Today's US Avg Grid) | D26: =F26*'Input Assumptions'!C30 -> 0 | E26: $/t HRC steel | F26: 0 | G26: GJ/t HRC steel | H26: =F26*'Input Assumptions'!F30 -> 0 | I26: t CO2e/t HRC steel | K26: =F26*'Input Assumptions'!I30 -> 0 | L26: t CO2e/t HRC steel
A27: Fossil Diesel | D27: =F27*'Input Assumptions'!C31 -> 0 | E27: $/t HRC steel | F27: 0 | G27: GJ/t HRC steel | H27: =F27*'Input Assumptions'!F31 -> 0 | I27: t CO2e/t HRC steel | K27: =F27*'Input Assumptions'!I31 -> 0 | L27: t CO2e/t HRC steel
A28: Fossil Gasoline | D28: =F28*'Input Assumptions'!C32 -> 0 | E28: $/t HRC steel | F28: 0 | G28: GJ/t HRC steel | H28: =F28*'Input Assumptions'!F32 -> 0 | I28: t CO2e/t HRC steel | K28: =F28*'Input Assumptions'!I32 -> 0 | L28: t CO2e/t HRC steel
A29: Electricity (Future; Greener) | D29: =F29*'Input Assumptions'!C34 -> 4.71844423 | E29: $/t HRC steel | F29: =F23 -> 0.2426628461 | G29: GJ/t HRC steel | H29: =F29*'Input Assumptions'!F34 -> 0.00471844423 | I29: t CO2e/t HRC steel | K29: =F29*'Input Assumptions'!I34 -> 0 | L29: t CO2e/t HRC steel
A30: Electrolysis Hydrogen (US; Future; Greener; IRA) | D30: =F30*'Input Assumptions'!C35 -> 0 | E30: $/t HRC steel | F30: =F26 -> 0 | G30: GJ/t HRC steel | H30: =F30*'Input Assumptions'!F35 -> 0 | I30: t CO2e/t HRC steel | K30: =F30*'Input Assumptions'!I35 -> 0 | L30: t CO2e/t HRC steel
A32: Energy Inputs to Steelmaking Step ONLY (Basic Oxygen Furnace)
A33: Natural gas | D33: =F33*'Input Assumptions'!C24 -> 0.9126866159 | E33: $/t HRC steel | F33: =CONVERT(0.334*1000000,"BTU","GJ") -> 0.3523886548 | G33: GJ/t HRC steel | H33: =F33*'Input Assumptions'!F24 -> 0.003876275203 | I33: t CO2e/t HRC steel | K33: =F33*'Input Assumptions'!I24 -> 0.02361003987 | L33: t CO2e/t HRC steel
A34: Coke | D34: =F34*'Input Assumptions'!C25 -> 0 | E34: $/t HRC steel | F34: 0 | G34: GJ/t HRC steel | H34: =F34*'Input Assumptions'!F25 -> 0 | I34: t CO2e/t HRC steel | K34: =F34*'Input Assumptions'!I25 -> 0 | L34: t CO2e/t HRC steel
A35: Electricity | D35: =F35*'Input Assumptions'!C27 -> 2.25664724 | E35: $/t HRC steel | F35: =CONVERT(0.11*1000000,"BTU","GJ") -> 0.1160561438 | G35: GJ/t HRC steel | H35: =F35*'Input Assumptions'!F27 -> 0.01247603546 | I35: t CO2e/t HRC steel | K35: =F35*'Input Assumptions'!I27 -> 0 | L35: t CO2e/t HRC steel
A36: Fossil SMR Hydrogen (US) | D36: =F36*'Input Assumptions'!C28 -> 0 | E36: $/t HRC steel | F36: 0 | G36: GJ/t HRC steel | H36: =F36*'Input Assumptions'!F28 -> 0 | I36: t CO2e/t HRC steel | K36: =F36*'Input Assumptions'!I28 -> 0 | L36: t CO2e/t HRC steel
A37: Fossil SMR+CCS Hydrogen (US) | D37: =F37*'Input Assumptions'!C29 -> 0 | E37: $/t HRC steel | F37: 0 | G37: GJ/t HRC steel | H37: =F37*'Input Assumptions'!F29 -> 0 | I37: t CO2e/t HRC steel | K37: =F37*'Input Assumptions'!I29 -> 0 | L37: t CO2e/t HRC steel
A38: Electrolysis Hydrogen (Today's US Avg Grid) | D38: =F38*'Input Assumptions'!C30 -> 0 | E38: $/t HRC steel | F38: 0 | G38: GJ/t HRC steel | H38: =F38*'Input Assumptions'!F30 -> 0 | I38: t CO2e/t HRC steel | K38: =F38*'Input Assumptions'!I30 -> 0 | L38: t CO2e/t HRC steel
A39: Fossil Diesel | D39: =F39*'Input Assumptions'!C31 -> 0 | E39: $/t HRC steel | F39: 0 | G39: GJ/t HRC steel | H39: =F39*'Input Assumptions'!F31 -> 0 | I39: t CO2e/t HRC steel | K39: =F39*'Input Assumptions'!I31 -> 0 | L39: t CO2e/t HRC steel
A40: Fossil Gasoline | D40: =F40*'Input Assumptions'!C32 -> 0 | E40: $/t HRC steel | F40: 0 | G40: GJ/t HRC steel | H40: =F40*'Input Assumptions'!F32 -> 0 | I40: t CO2e/t HRC steel | K40: =F40*'Input Assumptions'!I32 -> 0 | L40: t CO2e/t HRC steel
A41: Electricity (Future; Greener) | D41: =F41*'Input Assumptions'!C34 -> 2.25664724 | E41: $/t HRC steel | F41: =F35 -> 0.1160561438 | G41: GJ/t HRC steel | H41: =F41*'Input Assumptions'!F34 -> 0.00225664724 | I41: t CO2e/t HRC steel | K41: =F41*'Input Assumptions'!I34 -> 0 | L41: t CO2e/t HRC steel
A42: Electrolysis Hydrogen (US; Future; Greener; IRA) | D42: =F42*'Input Assumptions'!C35 -> 0 | E42: $/t HRC steel | F42: =F38 -> 0 | G42: GJ/t HRC steel | H42: =F42*'Input Assumptions'!F35 -> 0 | I42: t CO2e/t HRC steel | K42: =F42*'Input Assumptions'!I35 -> 0 | L42: t CO2e/t HRC steel
A44: Feedstocks to Ironmaking Step ONLY (Blast Furnace)
A45: Iron ore fines (imported) | D45: =F45*'Input Assumptions'!C14 -> 0 | E45: $/t HRC steel | F45: 0 | G45: t Fe/t HRC steel | H45: =F45*SUM(H107:H114) -> 0 | I45: t CO2e/t HRC steel | K45: ='Input Assumptions'!I14*F45 -> 0 | L45: t CO2e/t HRC steel
A46: Iron ore fines (US - Taconite) | D46: =F46*'Input Assumptions'!C15 -> 456 | E46: $/t HRC steel | F46: 4 | G46: t Fe/t HRC steel | H46: =F46*SUM(H119:H126) -> 0.2004521716 | I46: t CO2e/t HRC steel | K46: ='Input Assumptions'!I15*F46 -> 0 | L46: t CO2e/t HRC steel
A47: Scrap | D47: =F47*'Input Assumptions'!C16 -> 25 | E47: $/t HRC steel | F47: =0.25*('Input Assumptions'!B15) -> 0.0625 | G47: t scrap/t HRC steel | H47: ='Input Assumptions'!F16*F47 -> 0.0125 | I47: t CO2e/t HRC steel | K47: ='Input Assumptions'!I16*F47 -> 0 | L47: t CO2e/t HRC steel
A48: Biomass | D48: =F48*'Input Assumptions'!C17 -> 0 | E48: $/t HRC steel | F48: 0 | G48: t biomass/t HRC steel | H48: ='Input Assumptions'!F17*F48 -> 0 | I48: t CO2e/t HRC steel | K48: ='Input Assumptions'!I17*F48 -> 0 | L48: t CO2e/t HRC steel
A49: Biocharcoal | D49: =F49*'Input Assumptions'!C18 -> 0 | E49: $/t HRC steel | F49: 0 | G49: t biocharcoal/t HRC steel | H49: ='Input Assumptions'!F18*F49 -> 0 | I49: t CO2e/t HRC steel | K49: ='Input Assumptions'!I18*F49 -> 0 | L49: t CO2e/t HRC steel
A50: Electrolysis Hydrogen (Today's US Avg Grid) | D50: =F50*'Input Assumptions'!C19 -> 0 | E50: $/t HRC steel | F50: 0 | G50: t H2/t HRC steel | H50: ='Input Assumptions'!F19*F50 -> 0 | I50: t CO2e/t HRC steel | K50: ='Input Assumptions'!I19*F50 -> 0 | L50: t CO2e/t HRC steel
A51: Lime | D51: =F51*'Input Assumptions'!C20 -> 10.5 | E51: $/t HRC steel | F51: =150/2000 -> 0.075 | G51: t lime/t HRC steel | H51: ='Input Assumptions'!F20*F51 -> 0.000825 | I51: t CO2e/t HRC steel | K51: ='Input Assumptions'!I20*F51 -> 0 | L51: t CO2e/t HRC steel
A52: Electrolysis Hydrogen (Future; Greener; IRA credits) | D52: =F52*'Input Assumptions'!C21 -> 0 | E52: $/t HRC steel | F52: 0 | G52: t H2/t HRC steel | H52: ='Input Assumptions'!F21*F52 -> 0 | I52: t CO2e/t HRC steel | K52: ='Input Assumptions'!I21*F52 -> 0 | L52: t CO2e/t HRC steel
A54: Feedstocks to Steelmaking Step ONLY (Basic Oxygen Furnace)
A55: Iron ore fines (imported) | D55: =F55*'Input Assumptions'!C14 -> 0 | E55: $/t HRC steel | F55: 0 | G55: t Fe/t HRC steel | H55: =F55*SUM(H107:H114) -> 0 | I55: t CO2e/t HRC steel | K55: ='Input Assumptions'!I14*F55 -> 0 | L55: t CO2e/t HRC steel
A56: Iron ore fines (US - Taconite) | D56: =F56*'Input Assumptions'!C15 -> 0 | E56: $/t HRC steel | F56: 0 | G56: t Fe/t HRC steel | H56: =F56*SUM(H119:H126) -> 0 | I56: t CO2e/t HRC steel | K56: ='Input Assumptions'!I15*F56 -> 0 | L56: t CO2e/t HRC steel
A57: Scrap | D57: =F57*'Input Assumptions'!C16 -> 0 | E57: $/t HRC steel | F57: =0.25*('Input Assumptions'!B25) -> 0 | G57: t scrap/t HRC steel | H57: ='Input Assumptions'!F16*F57 -> 0 | I57: t CO2e/t HRC steel | K57: ='Input Assumptions'!I16*F57 -> 0 | L57: t CO2e/t HRC steel
A58: Biomass | D58: =F58*'Input Assumptions'!C17 -> 0 | E58: $/t HRC steel | F58: 0 | G58: t biomass/t HRC steel | H58: ='Input Assumptions'!F17*F58 -> 0 | I58: t CO2e/t HRC steel | K58: ='Input Assumptions'!I17*F58 -> 0 | L58: t CO2e/t HRC steel
A59: Biocharcoal | D59: =F59*'Input Assumptions'!C18 -> 0 | E59: $/t HRC steel | F59: 0 | G59: t biocharcoal/t HRC steel | H59: ='Input Assumptions'!F18*F59 -> 0 | I59: t CO2e/t HRC steel | K59: ='Input Assumptions'!I18*F59 -> 0 | L59: t CO2e/t HRC steel
A60: Electrolysis Hydrogen (Today's US Avg Grid) | D60: =F60*'Input Assumptions'!C19 -> 0 | E60: $/t HRC steel | F60: 0 | G60: t H2/t HRC steel | H60: ='Input Assumptions'!F19*F60 -> 0 | I60: t CO2e/t HRC steel | K60: ='Input Assumptions'!I19*F60 -> 0 | L60: t CO2e/t HRC steel
A61: Lime | D61: =F61*'Input Assumptions'!C20 -> 0 | E61: $/t HRC steel | F61: 0 | G61: t lime/t HRC steel | H61: ='Input Assumptions'!F20*F61 -> 0 | I61: t CO2e/t HRC steel | K61: ='Input Assumptions'!I20*F61 -> 0 | L61: t CO2e/t HRC steel
A62: Electrolysis Hydrogen (Future; Greener; IRA credits) | D62: =F62*'Input Assumptions'!C21 -> 0 | E62: $/t HRC steel | F62: 0 | G62: t H2/t HRC steel | H62: ='Input Assumptions'!F21*F62 -> 0 | I62: t CO2e/t HRC steel | K62: ='Input Assumptions'!I21*F62 -> 0 | L62: t CO2e/t HRC steel
A64: Life Cycle Stages | F64: Energy Input | G64: Unit
A65: Hot Rolling | C65: Annual. CAPEX | D65: 5 | E65: $/t HRC
A66: Natural Gas | E66: =F66*'Input Assumptions'!C24 -> 1.721534635 | F66: =CONVERT(0.63*1000000,"BTU","GJ") -> 0.6646851872 | G66: GJ/t HRC | H66: =F66*('Input Assumptions'!$F$24+'Input Assumptions'!$I$24) -> 0.0518454446 | I66: t CO2e/t HRC | J66: Base value from GREET2 2022
A67: Electricity | E67: =F67*'Input Assumptions'!C27 -> 14.44254234 | F67: =CONVERT(1000000*0.704,"BTU","GJ") -> 0.7427593202 | G67: GJ/t HRC | H67: =F67*('Input Assumptions'!$F$27+'Input Assumptions'!$I$27) -> 0.07984662693 | I67: t CO2e/t HRC | J67: Base value from GREET2 2022
A68: Biomass | E68: =F68*'Input Assumptions'!C17 -> 0 | F68: 0 | G68: t/t HRC | H68: =F68*('Input Assumptions'!$F$17+'Input Assumptions'!$I$17) -> 0 | I68: t CO2e/t HRC | J68: Base value from GREET2 2022
A69: Fossil SMR Hydrogen | E69: =F69*'Input Assumptions'!C29 -> 0 | F69: 0 | G69: GJ/t HRC | H69: =F69*('Input Assumptions'!$F$28+'Input Assumptions'!$I$28) -> 0 | I69: t CO2e/t HRC
A70: Fossil SMR+CCS Hydrogen | E70: =F70*'Input Assumptions'!C30 -> 0 | F70: 0 | G70: GJ/t HRC | H70: =F70*('Input Assumptions'!$F$29+'Input Assumptions'!$I$29) -> 0 | I70: t CO2e/t HRC
A71: Electrolysis Hydrogen (US) | E71: =F71*'Input Assumptions'!C31 -> 0 | F71: 0 | G71: GJ/t HRC | H71: =F71*('Input Assumptions'!$F$30+'Input Assumptions'!$I$30) -> 0 | I71: t CO2e/t HRC
A72: Electricity (Future; Greener) | E72: =F72*'Input Assumptions'!C34 -> 14.44254234 | F72: =F67 -> 0.7427593202 | G72: GJ/t HRC | H72: =F72*('Input Assumptions'!$F$34+'Input Assumptions'!$I$34) -> 0.01444254234 | I72: t CO2e/t HRC
A73: Electrolysis Hydrogen (Future; Greener; IRA credits) | E73: =F73*'Input Assumptions'!C35 -> 0 | F73: =F71 -> 0 | G73: GJ/t HRC | H73: =F73*('Input Assumptions'!$F$34+'Input Assumptions'!$I$34) -> 0 | I73: t CO2e/t HRC
A75: Sintering | C75: Annual. CAPEX | D75: 2 | E75: $/t HRC
A76: Natural Gas | E76: =F76*'Input Assumptions'!C24 -> 0 | F76: 0 | G76: GJ/t HRC | H76: =F76*('Input Assumptions'!$F$24+'Input Assumptions'!$I$24) -> 0 | I76: t CO2e/t HRC | J76: Base value from GREET2 2022
A77: Electricity | E77: =F77*'Input Assumptions'!C27 -> 3.138791162 | F77: =CONVERT(1000000*0.153,"BTU","GJ") -> 0.1614235455 | G77: GJ/t HRC | H77: =F77*('Input Assumptions'!$F$27+'Input Assumptions'!$I$27) -> 0.01735303114 | I77: t CO2e/t HRC | J77: Base value from GREET2 2022
A78: Biomass | E78: =F78*'Input Assumptions'!C17 -> 0 | F78: 0 | G78: GJ/t HRC | H78: =F78*('Input Assumptions'!$F$17+'Input Assumptions'!$I$17) -> 0 | I78: t CO2e/t HRC | J78: Base value from GREET2 2022
A79: Fossil SMR Hydrogen | E79: =F79*'Input Assumptions'!C29 -> 0 | F79: 0 | G79: GJ/t HRC | H79: =F79*('Input Assumptions'!$F$28+'Input Assumptions'!$I$28) -> 0 | I79: t CO2e/t HRC
A80: Fossil SMR+CCS Hydrogen | E80: =F80*'Input Assumptions'!C30 -> 0 | F80: 0 | G80: GJ/t HRC | H80: =F80*('Input Assumptions'!$F$29+'Input Assumptions'!$I$29) -> 0 | I80: t CO2e/t HRC
A81: Electrolysis Hydrogen (US) | E81: =F81*'Input Assumptions'!C31 -> 0 | F81: 0 | G81: GJ/t HRC | H81: =F81*('Input Assumptions'!$F$30+'Input Assumptions'!$I$30) -> 0 | I81: t CO2e/t HRC
A82: Coke | E82: =F82*'Input Assumptions'!C25 -> 2.781306587 | F82: =CONVERT(1.103*1000000,"BTU","GJ") -> 1.163726605 | G82: GJ/t HRC | H82: =F82*('Input Assumptions'!$F$25+'Input Assumptions'!$I$25) -> 0.1349922862 | I82: t CO2e/t HRC
A83: Electricity (Future; Greener) | E83: =F83*'Input Assumptions'!C34 -> 3.138791162 | F83: =F77 -> 0.1614235455 | G83: GJ/t HRC | H83: =F83*('Input Assumptions'!$F$34+'Input Assumptions'!$I$34) -> 0.003138791162 | I83: t CO2e/t HRC
A84: Electrolysis Hydrogen (Future; Greener; IRA credits) | E84: =F84*'Input Assumptions'!C35 -> 0 | F84: =F81 -> 0 | G84: GJ/t HRC | H84: =F84*('Input Assumptions'!$F$34+'Input Assumptions'!$I$34) -> 0 | I84: t CO2e/t HRC
A86: Stamping | C86: Annual. CAPEX | D86: 2 | E86: $/t HRC
A87: Natural Gas | E87: =F87*'Input Assumptions'!C24 -> 0 | F87: 0 | G87: GJ/t HRC | H87: =F87*('Input Assumptions'!$F$24+'Input Assumptions'!$I$24) -> 0 | I87: t CO2e/t HRC | J87: Base value from GREET2 2022
A88: Electricity | E88: =F88*'Input Assumptions'!C27 -> 17.64287842 | F88: =CONVERT(1000000*0.86,"BTU","GJ") -> 0.9073480333 | G88: GJ/t HRC | H88: =F88*('Input Assumptions'!$F$27+'Input Assumptions'!$I$27) -> 0.09753991357 | I88: t CO2e/t HRC | J88: Base value from GREET2 2022
A89: Biomass | E89: =F89*'Input Assumptions'!C17 -> 0 | F89: 0 | G89: GJ/t HRC | H89: =F89*('Input Assumptions'!$F$17+'Input Assumptions'!$I$17) -> 0 | I89: t CO2e/t HRC | J89: Base value from GREET2 2022
A90: Fossil SMR Hydrogen | E90: =F90*'Input Assumptions'!C28 -> 0 | F90: 0 | G90: GJ/t HRC | H90: =F90*('Input Assumptions'!$F$28+'Input Assumptions'!$I$28) -> 0 | I90: t CO2e/t HRC
A91: Fossil SMR+CCS Hydrogen | E91: =F91*'Input Assumptions'!C29 -> 0 | F91: 0 | G91: GJ/t HRC | H91: =F91*('Input Assumptions'!$F$29+'Input Assumptions'!$I$29) -> 0 | I91: t CO2e/t HRC
A92: Electrolysis Hydrogen (US) | E92: =F92*'Input Assumptions'!C30 -> 0 | F92: 0 | G92: GJ/t HRC | H92: =F92*('Input Assumptions'!$F$30+'Input Assumptions'!$I$30) -> 0 | I92: t CO2e/t HRC
A93: Electricity (Future; Greener) | E93: =F93*'Input Assumptions'!C34 -> 17.64287842 | F93: =F88 -> 0.9073480333 | G93: GJ/t HRC | H93: =F93*('Input Assumptions'!$F$34+'Input Assumptions'!$I$34) -> 0.01764287842 | I93: t CO2e/t HRC
A94: Electrolysis Hydrogen (Future; Greener; IRA credits) | E94: =F94*'Input Assumptions'!C35 -> 0 | F94: =F92 -> 0 | G94: GJ/t HRC | H94: =F94*('Input Assumptions'!$F$34+'Input Assumptions'!$I$34) -> 0 | I94: t CO2e/t HRC
A96: Skin Mill | C96: Annual. CAPEX | D96: 1 | E96: $/t HRC
A97: Natural Gas | E97: =F97*'Input Assumptions'!C24 -> 0 | F97: 0 | G97: GJ/t HRC | H97: =F97*('Input Assumptions'!$F$24+'Input Assumptions'!$I$24) -> 0 | I97: t CO2e/t HRC | J97: Base value from GREET2 2022
A98: Electricity | E98: =F98*'Input Assumptions'!C27 -> 0.8616289463 | F98: =CONVERT(1000000*0.042,"BTU","GJ") -> 0.04431234581 | G98: GJ/t HRC | H98: =F98*('Input Assumptions'!$F$27+'Input Assumptions'!$I$27) -> 0.004763577175 | I98: t CO2e/t HRC | J98: Base value from GREET2 2022
A99: Biomass | E99: =F99*'Input Assumptions'!C17 -> 0 | F99: 0 | G99: GJ/t HRC | H99: =F99*('Input Assumptions'!$F$17+'Input Assumptions'!$I$17) -> 0 | I99: t CO2e/t HRC | J99: Base value from GREET2 2022
A100: Fossil SMR Hydrogen | E100: =F100*'Input Assumptions'!C28 -> 0 | F100: 0 | G100: GJ/t HRC | H100: =F100*('Input Assumptions'!$F$28+'Input Assumptions'!$I$28) -> 0 | I100: t CO2e/t HRC
A101: Fossil SMR+CCS Hydrogen | E101: =F101*'Input Assumptions'!C29 -> 0 | F101: 0 | G101: GJ/t HRC | H101: =F101*('Input Assumptions'!$F$29+'Input Assumptions'!$I$29) -> 0 | I101: t CO2e/t HRC
A102: Electrolysis Hydrogen (US) | E102: =F102*'Input Assumptions'!C30 -> 0 | F102: 0 | G102: GJ/t HRC | H102: =F102*'Input Assumptions'!$F$30+'Input Assumptions'!$I$30 -> 0 | I102: t CO2e/t HRC
A103: Electricity (Future; Greener) | E103: =F103*'Input Assumptions'!C34 -> 0.8616289463 | F103: =F98 -> 0.04431234581 | G103: GJ/t HRC | H103: =F103*('Input Assumptions'!$F$34+'Input Assumptions'!$I$34) -> 0.0008616289463 | I103: t CO2e/t HRC
A104: Electrolysis Hydrogen (Future; Greener; IRA credits) | E104: =F104*'Input Assumptions'!C35 -> 0 | F104: =F102 -> 0 | G104: GJ/t HRC | H104: =F104*('Input Assumptions'!$F$34+'Input Assumptions'!$I$34) -> 0 | I104: t CO2e/t HRC
A106: Extraction + Beneficiation (Imported high quality)
A107: Natural Gas | E107: =F107*'Input Assumptions'!C24 -> 0.03525928591 | F107: =CONVERT(0.008*1000000,"BTU","GJ")/'Input Assumptions'!$B$14 -> 0.0136136239 | G107: GJ/t Fe (adjusted for Fe content in ore) | H107: =F107*('Input Assumptions'!$F$24+'Input Assumptions'!$I$24) -> 0.001061862665 | I107: t CO2e/t Fe (adjusted for Fe content in ore)
A108: Electricity | E108: =F108*'Input Assumptions'!C27 -> 2.614004868 | F108: =CONVERT(0.079*1000000,"BTU","GJ")/'Input Assumptions'!$B$14 -> 0.1344345361 | G108: GJ/t Fe (adjusted for Fe content in ore) | H108: =F108*('Input Assumptions'!$F$27+'Input Assumptions'!$I$27) -> 0.01445171263 | I108: t CO2e/t Fe (adjusted for Fe content in ore)
A109: Biomass | E109: =F109*'Input Assumptions'!C17 -> 0 | F109: 0 | G109: GJ/t Fe (adjusted for Fe content in ore) | H109: =F109*('Input Assumptions'!$F$17+'Input Assumptions'!$I$17) -> 0 | I109: t CO2e/t Fe (adjusted for Fe content in ore)
A110: Fossil SMR Hydrogen | E110: =F110*'Input Assumptions'!C28 -> 0 | F110: 0 | G110: GJ/t Fe (adjusted for Fe content in ore) | H110: =F110*('Input Assumptions'!$F$28+'Input Assumptions'!$I$28) -> 0 | I110: t CO2e/t Fe (adjusted for Fe content in ore)
A111: Fossil SMR+CCS Hydrogen | E111: =F111*'Input Assumptions'!C29 -> 0 | F111: 0 | G111: GJ/t Fe (adjusted for Fe content in ore) | H111: =F111*('Input Assumptions'!$F$29+'Input Assumptions'!$I$29) -> 0 | I111: t CO2e/t Fe (adjusted for Fe content in ore)
A112: Electrolysis Hydrogen (US) | E112: =F112*'Input Assumptions'!C30 -> 0 | F112: 0 | G112: GJ/t Fe (adjusted for Fe content in ore) | H112: =F112*('Input Assumptions'!$F$30+'Input Assumptions'!$I$30) -> 0 | I112: t CO2e/t Fe (adjusted for Fe content in ore)
A113: Fossil Diesel | E113: =F113*'Input Assumptions'!C31 -> 1.580645161 | F113: =CONVERT(0.028*1000000,"BTU","GJ")/'Input Assumptions'!$B$14 -> 0.04764768367 | G113: GJ/t Fe (adjusted for Fe content in ore) | H113: =F113*('Input Assumptions'!$F$31+'Input Assumptions'!$I$31) -> 0.004383586897 | I113: t CO2e/t Fe (adjusted for Fe content in ore)
A114: Fossil Gasoline | E114: =F114*'Input Assumptions'!C32 -> 0.09677419355 | F114: =CONVERT(0.002*1000000,"BTU","GJ")/'Input Assumptions'!$B$14 -> 0.003403405976 | G114: GJ/t Fe (adjusted for Fe content in ore) | H114: =F114*('Input Assumptions'!$F$32+'Input Assumptions'!$I$32) -> 0.0003097099438 | I114: t CO2e/t Fe (adjusted for Fe content in ore)
A115: Electricity (Future; Greener) | E115: =F115*'Input Assumptions'!C34 -> 2.614004868 | F115: =F108 -> 0.1344345361 | G115: GJ/t Fe (adjusted for Fe content in ore) | H115: =F115*('Input Assumptions'!$F$34+'Input Assumptions'!$I$34) -> 0.002614004868 | I115: t CO2e/t Fe (adjusted for Fe content in ore)
A116: Electrolysis Hydrogen (Future; Greener; IRA credits) | E116: =F116*'Input Assumptions'!C35 -> 0 | F116: =F112 -> 0 | G116: GJ/t Fe (adjusted for Fe content in ore) | H116: =F116*('Input Assumptions'!$F$34+'Input Assumptions'!$I$34) -> 0 | I116: t CO2e/t Fe (adjusted for Fe content in ore)
A118: Extraction + Beneficiation (US Taconite)
A119: Natural Gas | E119: =F119*'Input Assumptions'!C24 -> 0.08744302907 | F119: =CONVERT(0.008*1000000,"BTU","GJ")/'Input Assumptions'!$B$15 -> 0.03376178728 | G119: GJ/t Fe (adjusted for Fe content in ore) | H119: =F119*('Input Assumptions'!$F$24+'Input Assumptions'!$I$24) -> 0.002633419408 | I119: t CO2e/t Fe (adjusted for Fe content in ore)
A120: Electricity | E120: =F120*'Input Assumptions'!C27 -> 6.482732072 | F120: =CONVERT(0.079*1000000,"BTU","GJ")/'Input Assumptions'!$B$15 -> 0.3333976494 | G120: GJ/t Fe (adjusted for Fe content in ore) | H120: =F120*('Input Assumptions'!$F$27+'Input Assumptions'!$I$27) -> 0.03584024731 | I120: t CO2e/t Fe (adjusted for Fe content in ore)
A121: Biomass | E121: =F121*'Input Assumptions'!C28 -> 0 | F121: 0 | G121: GJ/t Fe (adjusted for Fe content in ore) | H121: =F121*('Input Assumptions'!$F$17+'Input Assumptions'!$I$17) -> 0 | I121: t CO2e/t Fe (adjusted for Fe content in ore)
A122: Fossil SMR Hydrogen | E122: =F122*'Input Assumptions'!C29 -> 0 | F122: 0 | G122: GJ/t Fe (adjusted for Fe content in ore) | H122: =F122*('Input Assumptions'!$F$28+'Input Assumptions'!$I$28) -> 0 | I122: t CO2e/t Fe (adjusted for Fe content in ore)
A123: Fossil SMR+CCS Hydrogen | E123: =F123*'Input Assumptions'!C30 -> 0 | F123: 0 | G123: GJ/t Fe (adjusted for Fe content in ore) | H123: =F123*('Input Assumptions'!$F$29+'Input Assumptions'!$I$29) -> 0 | I123: t CO2e/t Fe (adjusted for Fe content in ore)
A124: Electrolysis Hydrogen (US) | E124: =F124*'Input Assumptions'!C31 -> 0 | F124: 0 | G124: GJ/t Fe (adjusted for Fe content in ore) | H124: =F124*('Input Assumptions'!$F$30+'Input Assumptions'!$I$30) -> 0 | I124: t CO2e/t Fe (adjusted for Fe content in ore)
A125: Fossil Diesel | E125: =F125*'Input Assumptions'!C32 -> 3.36 | F125: =CONVERT(0.028*1000000,"BTU","GJ")/'Input Assumptions'!$B$15 -> 0.1181662555 | G125: GJ/t Fe (adjusted for Fe content in ore) | H125: =F125*('Input Assumptions'!$F$31+'Input Assumptions'!$I$31) -> 0.01087129551 | I125: t CO2e/t Fe (adjusted for Fe content in ore)
A126: Fossil Gasoline | E126: =F126*'Input Assumptions'!C36 -> 0 | F126: =CONVERT(0.002*1000000,"BTU","GJ")/'Input Assumptions'!$B$15 -> 0.008440446821 | G126: GJ/t Fe (adjusted for Fe content in ore) | H126: =F126*('Input Assumptions'!$F$32+'Input Assumptions'!$I$32) -> 0.0007680806607 | I126: t CO2e/t Fe (adjusted for Fe content in ore)
A127: Electricity (Future; Greener) | E127: =F127*'Input Assumptions'!C34 -> 6.482732072 | F127: =F120 -> 0.3333976494 | G127: GJ/t Fe (adjusted for Fe content in ore) | H127: =F127*('Input Assumptions'!$F$34+'Input Assumptions'!$I$34) -> 0.006482732072 | I127: t CO2e/t Fe (adjusted for Fe content in ore)
A128: Electrolysis Hydrogen (Future; Greener; IRA credits) | E128: =F128*'Input Assumptions'!C35 -> 0 | F128: =F124 -> 0 | G128: GJ/t Fe (adjusted for Fe content in ore) | H128: =F128*('Input Assumptions'!$F$34+'Input Assumptions'!$I$34) -> 0 | I128: t CO2e/t Fe (adjusted for Fe content in ore)

Sheet Example - Low-C Elec (hidden)
A1: BF-BOF Pathway to HRC
A2: Input Variable | D2: Value | E2: Cost Units | F2: Value | G2: Amount/t crude steel | H2: Value | I2: Embedded emissions | K2: Value | L2: Process emissions | M2: Justification for Changes | N2: Source
A4: Capital Equipment
A5: BF + BOF (total upfront cost) | D5: =#REF! ->  | E5: $/t HRC
A6: BF + BOF Annualized | D6: =#REF! ->  | E6: $/t HRC
A8: On-Site Operations
A9: BF + BOF | D9: =D5*0.085 ->  | E9: $/t HRC
A10: Sintering | D10: =D68+SUM(E69:E75) -> 7.920097749 | E10: $/t HRC | K10: =SUM(H69:H75) ->  | L10: t CO2e/t HRC steel
A11: Hot Rolling | D11: =D60+SUM(E61:E66) -> 21.16407697 | E11: $/t HRC | K11: =SUM(H61:H66) ->  | L11: t CO2e/t HRC steel
A12: Stamping | D12: =D77+SUM(E78:E83) -> 19.64287842 | E12: $/t HRC | K12: =SUM(H78:H83) ->  | L12: t CO2e/t HRC steel
A13: Skin Mill | D13: =D85+SUM(E86:E91) -> 1.861628946 | E13: $/t HRC | K13: =SUM(H86:H91) ->  | L13: t CO2e/t HRC steel
A16: Transportation | C16: Distance (mi)
A17: Barge | C17: 0 | D17: =C17*#REF!*F17 ->  | E17: $/t HRC steel | F17: 0 | G17: t ore/t HRC steel | H17: 0 | I17: t CO2e/t HRC steel | K17: =F17*#REF!*C17 ->  | L17: t CO2e/t HRC steel | N17: GREET1 2022. Fuel Embedded emissions are wrapped into the "process emissions" column as well as combustion.
A18: Rail | C18: 800 | D18: =C18*#REF!*F18 ->  | E18: $/t HRC steel | F18: 4 | G18: t ore/t HRC steel | H18: 0 | I18: t CO2e/t HRC steel | K18: =F18*#REF!*C18 ->  | L18: t CO2e/t HRC steel | N18: GREET1 2022. Fuel Embedded emissions are wrapped into the "process emissions" column as well as combustion.
A19: Truck | C19: 0 | D19: =C19*#REF!*F19 ->  | E19: $/t HRC steel | F19: 0 | G19: t ore/t HRC steel | H19: 0 | I19: t CO2e/t HRC steel | K19: =F19*#REF!*C19 ->  | L19: t CO2e/t HRC steel | N19: GREET1 2022. Fuel Embedded emissions are wrapped into the "process emissions" column as well as combustion.
A21: Energy Inputs to Ironmaking Step ONLY (Blast Furnace)
A22: Natural gas | D22: =F22*#REF! ->  | E22: $/t HRC steel | F22: =CONVERT(1.462*1000000,"BTU","GJ") -> 1.542491657 | G22: GJ/t HRC steel | H22: =F22*#REF! ->  | I22: t CO2e/t HRC steel | K22: =F22*#REF! ->  | L22: t CO2e/t HRC steel
A23: Coke | D23: =F23*#REF! ->  | E23: $/t HRC steel | F23: =CONVERT(9.933*1000000,"BTU","GJ") -> 10.47986978 | G23: GJ/t HRC steel | H23: =F23*#REF! ->  | I23: t CO2e/t HRC steel | K23: =F23*#REF! ->  | L23: t CO2e/t HRC steel
A24: Electricity (2050 grid) | D24: =F24*#REF! ->  | E24: $/t HRC steel | F24: =CONVERT(0.23*1000000,"BTU","GJ") -> 0.2426628461 | G24: GJ/t HRC steel | H24: =F24*#REF! ->  | I24: t CO2e/t HRC steel | K24: =F24*#REF! ->  | L24: t CO2e/t HRC steel
A25: Fossil SMR Hydrogen (US) | D25: =F25*#REF! ->  | E25: $/t HRC steel | F25: 0 | G25: GJ/t HRC steel | H25: =F25*#REF! ->  | I25: t CO2e/t HRC steel | K25: =F25*#REF! ->  | L25: t CO2e/t HRC steel
A26: Fossil SMR+CCS Hydrogen (US) | D26: =F26*#REF! ->  | E26: $/t HRC steel | F26: 0 | G26: GJ/t HRC steel | H26: =F26*#REF! ->  | I26: t CO2e/t HRC steel | K26: =F26*#REF! ->  | L26: t CO2e/t HRC steel
A27: Electrolysis Hydrogen (US) | D27: =F27*#REF! ->  | E27: $/t HRC steel | F27: 0 | G27: GJ/t HRC steel | H27: =F27*#REF! ->  | I27: t CO2e/t HRC steel | K27: =F27*#REF! ->  | L27: t CO2e/t HRC steel
A28: Fossil Diesel | D28: =F28*#REF! ->  | E28: $/t HRC steel | F28: 0 | G28: GJ/t HRC steel | H28: =F28*#REF! ->  | I28: t CO2e/t HRC steel | K28: =F28*#REF! ->  | L28: t CO2e/t HRC steel
A29: Fossil Gasoline | D29: =F29*#REF! ->  | E29: $/t HRC steel | F29: 0 | G29: GJ/t HRC steel | H29: =F29*#REF! ->  | I29: t CO2e/t HRC steel | K29: =F29*#REF! ->  | L29: t CO2e/t HRC steel
A31: Energy Inputs to Steelmaking Step ONLY (Basic Oxygen Furnace)
A32: Natural gas | D32: =F32*#REF! ->  | E32: $/t HRC steel | F32: =CONVERT(0.334*1000000,"BTU","GJ") -> 0.3523886548 | G32: GJ/t HRC steel | H32: =F32*#REF! ->  | I32: t CO2e/t HRC steel | K32: =F32*#REF! ->  | L32: t CO2e/t HRC steel
A33: Coke | D33: =F33*#REF! ->  | E33: $/t HRC steel | F33: 0 | G33: GJ/t HRC steel | H33: =F33*#REF! ->  | I33: t CO2e/t HRC steel | K33: =F33*#REF! ->  | L33: t CO2e/t HRC steel
A34: Electricity (2050 grid) | D34: =F34*#REF! ->  | E34: $/t HRC steel | F34: =CONVERT(0.11*1000000,"BTU","GJ") -> 0.1160561438 | G34: GJ/t HRC steel | H34: =F34*#REF! ->  | I34: t CO2e/t HRC steel | K34: =F34*#REF! ->  | L34: t CO2e/t HRC steel
A35: Fossil SMR Hydrogen (US) | D35: =F35*#REF! ->  | E35: $/t HRC steel | F35: 0 | G35: GJ/t HRC steel | H35: =F35*#REF! ->  | I35: t CO2e/t HRC steel | K35: =F35*#REF! ->  | L35: t CO2e/t HRC steel
A36: Fossil SMR+CCS Hydrogen (US) | D36: =F36*#REF! ->  | E36: $/t HRC steel | F36: 0 | G36: GJ/t HRC steel | H36: =F36*#REF! ->  | I36: t CO2e/t HRC steel | K36: =F36*#REF! ->  | L36: t CO2e/t HRC steel
A37: Electrolysis Hydrogen (US) | D37: =F37*#REF! ->  | E37: $/t HRC steel | F37: 0 | G37: GJ/t HRC steel | H37: =F37*#REF! ->  | I37: t CO2e/t HRC steel | K37: =F37*#REF! ->  | L37: t CO2e/t HRC steel
A38: Fossil Diesel | D38: =F38*#REF! ->  | E38: $/t HRC steel | F38: 0 | G38: GJ/t HRC steel | H38: =F38*#REF! ->  | I38: t CO2e/t HRC steel | K38: =F38*#REF! ->  | L38: t CO2e/t HRC steel
A39: Fossil Gasoline | D39: =F39*#REF! ->  | E39: $/t HRC steel | F39: 0 | G39: GJ/t HRC steel | H39: =F39*#REF! ->  | I39: t CO2e/t HRC steel | K39: =F39*#REF! ->  | L39: t CO2e/t HRC steel
A41: Feedstocks to Ironmaking Step ONLY (Blast Furnace)
A42: Iron ore fines (imported) | D42: =F42*#REF! ->  | E42: $/t HRC steel | F42: 0 | G42: t Fe/t HRC steel | H42: =F42*SUM(H105:H112) ->  | I42: t CO2e/t HRC steel | K42: =#REF!*F42 ->  | L42: t CO2e/t HRC steel
A43: Iron ore fines (US - Taconite) | D43: =F43*#REF! ->  | E43: $/t HRC steel | F43: 4 | G43: t Fe/t HRC steel | H43: =F43*SUM(H115:H122) ->  | I43: t CO2e/t HRC steel | K43: =#REF!*F43 ->  | L43: t CO2e/t HRC steel
A44: Scrap | D44: =F44*#REF! ->  | E44: $/t HRC steel | F44: =0.25*(#REF!) ->  | G44: t scrap/t HRC steel | H44: =#REF!*F44 ->  | I44: t CO2e/t HRC steel | K44: =#REF!*F44 ->  | L44: t CO2e/t HRC steel
A45: Biomass | D45: =F45*#REF! ->  | E45: $/t HRC steel | F45: 0 | G45: t biomass/t HRC steel | H45: =#REF!*F45 ->  | I45: t CO2e/t HRC steel | K45: =#REF!*F45 ->  | L45: t CO2e/t HRC steel
A46: Biocharcoal | D46: =F46*#REF! ->  | E46: $/t HRC steel | F46: 0 | G46: t biocharcoal/t HRC steel | H46: =#REF!*F46 ->  | I46: t CO2e/t HRC steel | K46: =#REF!*F46 ->  | L46: t CO2e/t HRC steel
A47: Electrolysis Hydrogen | D47: =F47*#REF! ->  | E47: $/t HRC steel | F47: 0 | G47: t H2/t HRC steel | H47: =#REF!*F47 ->  | I47: t CO2e/t HRC steel | K47: =#REF!*F47 ->  | L47: t CO2e/t HRC steel
A48: Lime | D48: =F48*#REF! ->  | E48: $/t HRC steel | F48: =150/2000 -> 0.075 | G48: t lime/t HRC steel | H48: =#REF!*F48 ->  | I48: t CO2e/t HRC steel | K48: =#REF!*F48 ->  | L48: t CO2e/t HRC steel
A50: Feedstocks to Steelmaking Step ONLY (Basic Oxygen Furnace)
A51: Iron ore fines (imported) | D51: =F51*#REF! ->  | E51: $/t HRC steel | F51: 0 | G51: t Fe/t HRC steel | H51: =F51*SUM(H105:H112) ->  | I51: t CO2e/t HRC steel | K51: =#REF!*F51 ->  | L51: t CO2e/t HRC steel
A52: Iron ore fines (US - Taconite) | D52: =F52*#REF! ->  | E52: $/t HRC steel | F52: 0 | G52: t Fe/t HRC steel | H52: =F52*SUM(H115:H122) ->  | I52: t CO2e/t HRC steel | K52: =#REF!*F52 ->  | L52: t CO2e/t HRC steel
A53: Scrap | D53: =F53*#REF! ->  | E53: $/t HRC steel | F53: =0.25*(#REF!) ->  | G53: t scrap/t HRC steel | H53: =#REF!*F53 ->  | I53: t CO2e/t HRC steel | K53: =#REF!*F53 ->  | L53: t CO2e/t HRC steel
A54: Biomass | D54: =F54*#REF! ->  | E54: $/t HRC steel | F54: 0 | G54: t biomass/t HRC steel | H54: =#REF!*F54 ->  | I54: t CO2e/t HRC steel | K54: =#REF!*F54 ->  | L54: t CO2e/t HRC steel
A55: Biocharcoal | D55: =F55*#REF! ->  | E55: $/t HRC steel | F55: 0 | G55: t biocharcoal/t HRC steel | H55: =#REF!*F55 ->  | I55: t CO2e/t HRC steel | K55: =#REF!*F55 ->  | L55: t CO2e/t HRC steel
A56: Electrolysis Hydrogen | D56: =F56*#REF! ->  | E56: $/t HRC steel | F56: 0 | G56: t H2/t HRC steel | H56: =#REF!*F56 ->  | I56: t CO2e/t HRC steel | K56: =#REF!*F56 ->  | L56: t CO2e/t HRC steel
A57: Lime | D57: =F57*#REF! ->  | E57: $/t HRC steel | F57: 0 | G57: t lime/t HRC steel | H57: =#REF!*F57 ->  | I57: t CO2e/t HRC steel | K57: =#REF!*F57 ->  | L57: t CO2e/t HRC steel
A59: Life Cycle Stages | F59: Energy Input | G59: Unit
A60: Hot Rolling | D60: 5 | E60: $/t HRC
A61: Natural Gas | E61: =F61*'Input Assumptions'!C24 -> 1.721534635 | F61: =CONVERT(0.63*1000000,"BTU","GJ") -> 0.6646851872 | G61: GJ/t HRC | H61: =F61*(#REF!+#REF!) ->  | I61: t CO2e/t HRC | J61: Base value from GREET2 2022
A62: Electricity | E62: =F62*'Input Assumptions'!C27 -> 14.44254234 | F62: =CONVERT(1000000*0.704,"BTU","GJ") -> 0.7427593202 | G62: GJ/t HRC | H62: =F62*(#REF!+#REF!) ->  | I62: t CO2e/t HRC | J62: Base value from GREET2 2022
A63: Biomass | E63: =F63*'Input Assumptions'!C17 -> 0 | F63: 0 | G63: t/t HRC | H63: =F63*(#REF!+#REF!) ->  | I63: t CO2e/t HRC | J63: Base value from GREET2 2022
A64: Fossil SMR Hydrogen | E64: =F64*'Input Assumptions'!C29 -> 0 | F64: 0 | G64: GJ/t HRC | H64: =F64*(#REF!+#REF!) ->  | I64: t CO2e/t HRC
A65: Fossil SMR+CCS Hydrogen | E65: =F65*'Input Assumptions'!C30 -> 0 | F65: 0 | G65: GJ/t HRC | H65: =F65*(#REF!+#REF!) ->  | I65: t CO2e/t HRC
A66: Electrolysis Hydrogen (US) | E66: =F66*'Input Assumptions'!C31 -> 0 | F66: 0 | G66: GJ/t HRC | H66: =F66*(#REF!+#REF!) ->  | I66: t CO2e/t HRC
A68: Sintering | D68: 2 | E68: $/t HRC
A69: Natural Gas | E69: =F69*'Input Assumptions'!C24 -> 0 | F69: 0 | G69: GJ/t HRC | H69: =F69*(#REF!+#REF!) ->  | I69: t CO2e/t HRC | J69: Base value from GREET2 2022
A70: Electricity | E70: =F70*'Input Assumptions'!C27 -> 3.138791162 | F70: =CONVERT(1000000*0.153,"BTU","GJ") -> 0.1614235455 | G70: GJ/t HRC | H70: =F70*(#REF!+#REF!) ->  | I70: t CO2e/t HRC | J70: Base value from GREET2 2022
A71: Biomass | E71: =F71*'Input Assumptions'!C17 -> 0 | F71: 0 | G71: GJ/t HRC | H71: =F71*(#REF!+#REF!) ->  | I71: t CO2e/t HRC | J71: Base value from GREET2 2022
A72: Fossil SMR Hydrogen | E72: =F72*'Input Assumptions'!C29 -> 0 | F72: 0 | G72: GJ/t HRC | H72: =F72*(#REF!+#REF!) ->  | I72: t CO2e/t HRC
A73: Fossil SMR+CCS Hydrogen | E73: =F73*'Input Assumptions'!C30 -> 0 | F73: 0 | G73: GJ/t HRC | H73: =F73*(#REF!+#REF!) ->  | I73: t CO2e/t HRC
A74: Electrolysis Hydrogen (US) | E74: =F74*'Input Assumptions'!C31 -> 0 | F74: 0 | G74: GJ/t HRC | H74: =F74*(#REF!+#REF!) ->  | I74: t CO2e/t HRC
A75: Coke | E75: =F75*'Input Assumptions'!C25 -> 2.781306587 | F75: =CONVERT(1.103*1000000,"BTU","GJ") -> 1.163726605 | G75: GJ/t HRC | H75: =F75*(#REF!+#REF!) ->  | I75: t CO2e/t HRC
A77: Stamping | D77: 2 | E77: $/t HRC
A78: Natural Gas | E78: =F78*'Input Assumptions'!C24 -> 0 | F78: 0 | G78: GJ/t HRC | H78: =F78*(#REF!+#REF!) ->  | I78: t CO2e/t HRC | J78: Base value from GREET2 2022
A79: Electricity | E79: =F79*'Input Assumptions'!C27 -> 17.64287842 | F79: =CONVERT(1000000*0.86,"BTU","GJ") -> 0.9073480333 | G79: GJ/t HRC | H79: =F79*(#REF!+#REF!) ->  | I79: t CO2e/t HRC | J79: Base value from GREET2 2022
A80: Biomass | E80: =F80*'Input Assumptions'!C17 -> 0 | F80: 0 | G80: GJ/t HRC | H80: =F80*(#REF!+#REF!) ->  | I80: t CO2e/t HRC | J80: Base value from GREET2 2022
A81: Fossil SMR Hydrogen | E81: =F81*'Input Assumptions'!C28 -> 0 | F81: 0 | G81: GJ/t HRC | H81: =F81*(#REF!+#REF!) ->  | I81: t CO2e/t HRC
A82: Fossil SMR+CCS Hydrogen | E82: =F82*'Input Assumptions'!C29 -> 0 | F82: 0 | G82: GJ/t HRC | H82: =F82*(#REF!+#REF!) ->  | I82: t CO2e/t HRC
A83: Electrolysis Hydrogen (US) | E83: =F83*'Input Assumptions'!C30 -> 0 | F83: 0 | G83: GJ/t HRC | H83: =F83*(#REF!+#REF!) ->  | I83: t CO2e/t HRC
A85: Skin Mill | D85: 1 | E85: $/t HRC
A86: Natural Gas | E86: =F86*'Input Assumptions'!C24 -> 0 | F86: 0 | G86: GJ/t HRC | H86: =F86*(#REF!+#REF!) ->  | I86: t CO2e/t HRC | J86: Base value from GREET2 2022
A87: Electricity | E87: =F87*'Input Assumptions'!C27 -> 0.8616289463 | F87: =CONVERT(1000000*0.042,"BTU","GJ") -> 0.04431234581 | G87: GJ/t HRC | H87: =F87*(#REF!+#REF!) ->  | I87: t CO2e/t HRC | J87: Base value from GREET2 2022
A88: Biomass | E88: =F88*'Input Assumptions'!C17 -> 0 | F88: 0 | G88: GJ/t HRC | H88: =F88*(#REF!+#REF!) ->  | I88: t CO2e/t HRC | J88: Base value from GREET2 2022
A89: Fossil SMR Hydrogen | E89: =F89*'Input Assumptions'!C28 -> 0 | F89: 0 | G89: GJ/t HRC | H89: =F89*(#REF!+#REF!) ->  | I89: t CO2e/t HRC
A90: Fossil SMR+CCS Hydrogen | E90: =F90*'Input Assumptions'!C29 -> 0 | F90: 0 | G90: GJ/t HRC | H90: =F90*(#REF!+#REF!) ->  | I90: t CO2e/t HRC
A91: Electrolysis Hydrogen (US) | E91: =F91*'Input Assumptions'!C30 -> 0 | F91: 0 | G91: GJ/t HRC | H91: =F91*#REF!+#REF! ->  | I91: t CO2e/t HRC
A93: EAF | E93: $/t HRC
A94: Natural Gas | E94: =F94*'Input Assumptions'!C24 -> 0 | F94: 0 | G94: GJ/t HRC | H94: =F94*(#REF!+#REF!) ->  | I94: t CO2e/t HRC | J94: Base value from GREET2 2022
A95: Electricity | E95: =F95*'Input Assumptions'!C27 -> 0 | F95: 0 | G95: GJ/t HRC | H95: =F95*(#REF!+#REF!) ->  | I95: t CO2e/t HRC | J95: Base value from GREET2 2022
A96: Biomass | E96: =F96*'Input Assumptions'!C17 -> 0 | F96: 0 | G96: GJ/t HRC | H96: =F96*(#REF!+#REF!) ->  | I96: t CO2e/t HRC | J96: Base value from GREET2 2022
A97: Fossil SMR Hydrogen | E97: =F97*'Input Assumptions'!C28 -> 0 | F97: 0 | G97: GJ/t HRC | H97: =F97*(#REF!+#REF!) ->  | I97: t CO2e/t HRC
A98: Fossil SMR+CCS Hydrogen | E98: =F98*'Input Assumptions'!C29 -> 0 | F98: 0 | G98: GJ/t HRC | H98: =F98*(#REF!+#REF!) ->  | I98: t CO2e/t HRC
A99: Electrolysis Hydrogen (US) | E99: =F99*'Input Assumptions'!C30 -> 0 | F99: 0 | G99: GJ/t HRC | H99: =F99*(#REF!+#REF!) ->  | I99: t CO2e/t HRC
A100: Coke | E100: =F100*'Input Assumptions'!C25 -> 0 | F100: 0 | G100: GJ/t HRC | H100: =F100*(#REF!+#REF!) ->  | I100: t CO2e/t HRC
A101: Scrap | E101: =F101*'Input Assumptions'!C16 -> 0 | F101: 0 | G101: t/t HRC | H101: =F101*(#REF!+#REF!) ->  | I101: t CO2e/t HRC
A102: Iron Ore | E102: =F102*'Input Assumptions'!C14 -> 0 | F102: 0 | G102: t/t HRC | H102: =F102*#REF! ->  | I102: t CO2e/t HRC
A104: Extraction + Beneficiation (Imported high quality) | E104: $/t HRC
A105: Natural Gas | E105: =F105*'Input Assumptions'!C24 ->  | F105: =CONVERT(0.008*1000000,"BTU","GJ")/#REF! ->  | G105: GJ/t Fe (adjusted for Fe content in ore) | H105: =F105*(#REF!+#REF!) ->  | I105: t CO2e/t Fe (adjusted for Fe content in ore)
A106: Electricity | E106: =F106*'Input Assumptions'!C27 ->  | F106: =CONVERT(0.079*1000000,"BTU","GJ")/#REF! ->  | G106: GJ/t Fe (adjusted for Fe content in ore) | H106: =F106*(#REF!+#REF!) ->  | I106: t CO2e/t Fe (adjusted for Fe content in ore)
A107: Biomass | E107: =F107*'Input Assumptions'!C17 -> 0 | F107: 0 | G107: GJ/t Fe (adjusted for Fe content in ore) | H107: =F107*(#REF!+#REF!) ->  | I107: t CO2e/t Fe (adjusted for Fe content in ore)
A108: Fossil SMR Hydrogen | E108: =F108*'Input Assumptions'!C28 -> 0 | F108: 0 | G108: GJ/t Fe (adjusted for Fe content in ore) | H108: =F108*(#REF!+#REF!) ->  | I108: t CO2e/t Fe (adjusted for Fe content in ore)
A109: Fossil SMR+CCS Hydrogen | E109: =F109*'Input Assumptions'!C29 -> 0 | F109: 0 | G109: GJ/t Fe (adjusted for Fe content in ore) | H109: =F109*(#REF!+#REF!) ->  | I109: t CO2e/t Fe (adjusted for Fe content in ore)
A110: Electrolysis Hydrogen (US) | E110: =F110*'Input Assumptions'!C30 -> 0 | F110: 0 | G110: GJ/t Fe (adjusted for Fe content in ore) | H110: =F110*(#REF!+#REF!) ->  | I110: t CO2e/t Fe (adjusted for Fe content in ore)
A111: Fossil Diesel | E111: =F111*'Input Assumptions'!C31 ->  | F111: =CONVERT(0.028*1000000,"BTU","GJ")/#REF! ->  | G111: GJ/t Fe (adjusted for Fe content in ore) | H111: =F111*(#REF!+#REF!) ->  | I111: t CO2e/t Fe (adjusted for Fe content in ore)
A112: Fossil Gasoline | E112: =F112*'Input Assumptions'!C32 ->  | F112: =CONVERT(0.002*1000000,"BTU","GJ")/#REF! ->  | G112: GJ/t Fe (adjusted for Fe content in ore) | H112: =F112*(#REF!+#REF!) ->  | I112: t CO2e/t Fe (adjusted for Fe content in ore)
A114: Extraction + Beneficiation (US Taconite) | E114: $/t HRC
A115: Natural Gas | E115: =F115*'Input Assumptions'!C24 ->  | F115: =CONVERT(0.008*1000000,"BTU","GJ")/#REF! ->  | G115: GJ/t Fe (adjusted for Fe content in ore) | H115: =F115*(#REF!+#REF!) ->  | I115: t CO2e/t Fe (adjusted for Fe content in ore)
A116: Electricity | E116: =F116*'Input Assumptions'!C27 ->  | F116: =CONVERT(0.079*1000000,"BTU","GJ")/#REF! ->  | G116: GJ/t Fe (adjusted for Fe content in ore) | H116: =F116*(#REF!+#REF!) ->  | I116: t CO2e/t Fe (adjusted for Fe content in ore)
A117: Biomass | E117: =F117*'Input Assumptions'!C28 -> 0 | F117: 0 | G117: GJ/t Fe (adjusted for Fe content in ore) | H117: =F117*(#REF!+#REF!) ->  | I117: t CO2e/t Fe (adjusted for Fe content in ore)
A118: Fossil SMR Hydrogen | E118: =F118*'Input Assumptions'!C29 -> 0 | F118: 0 | G118: GJ/t Fe (adjusted for Fe content in ore) | H118: =F118*(#REF!+#REF!) ->  | I118: t CO2e/t Fe (adjusted for Fe content in ore)
A119: Fossil SMR+CCS Hydrogen | E119: =F119*'Input Assumptions'!C30 -> 0 | F119: 0 | G119: GJ/t Fe (adjusted for Fe content in ore) | H119: =F119*(#REF!+#REF!) ->  | I119: t CO2e/t Fe (adjusted for Fe content in ore)
A120: Electrolysis Hydrogen (US) | E120: =F120*'Input Assumptions'!C31 -> 0 | F120: 0 | G120: GJ/t Fe (adjusted for Fe content in ore) | H120: =F120*(#REF!+#REF!) ->  | I120: t CO2e/t Fe (adjusted for Fe content in ore)
A121: Fossil Diesel | E121: =F121*'Input Assumptions'!C32 ->  | F121: =CONVERT(0.028*1000000,"BTU","GJ")/#REF! ->  | G121: GJ/t Fe (adjusted for Fe content in ore) | H121: =F121*(#REF!+#REF!) ->  | I121: t CO2e/t Fe (adjusted for Fe content in ore)
A122: Fossil Gasoline | E122: =F122*'Input Assumptions'!C36 ->  | F122: =CONVERT(0.002*1000000,"BTU","GJ")/#REF! ->  | G122: GJ/t Fe (adjusted for Fe content in ore) | H122: =F122*(#REF!+#REF!) ->  | I122: t CO2e/t Fe (adjusted for Fe content in ore)

Sheet Comparison
A29: Levelized Cost of Hot-Rolled Coil Comparison
C30: CAPEX | D30: Fixed OPEX | E30: Electricity | F30: Fuel | G30: Feedstocks | H30: Transportation
B31: BF-BOF: Today's Grid | C31: ='Example - BF-BOF'!D9 -> 59.16554466 | D31: =SUM('Example - BF-BOF'!D65,'Example - BF-BOF'!D75,'Example - BF-BOF'!D86,'Example - BF-BOF'!D96)+'Example - BF-BOF'!D12 -> 61 | E31: ='Example - BF-BOF'!D23+'Example - BF-BOF'!D35+'Example - BF-BOF'!E67+'Example - BF-BOF'!E77+'Example - BF-BOF'!E88+'Example - BF-BOF'!E98 -> 43.06093234 | F31: =SUM('Example - BF-BOF'!D21:D28)-'Example - BF-BOF'!D23+SUM('Example - BF-BOF'!D33:D40)-'Example - BF-BOF'!D35+SUM('Example - BF-BOF'!E66:E71)-'Example - BF-BOF'!E67+SUM('Example - BF-BOF'!E76:E82)-'Example - BF-BOF'!E77+SUM('Example - BF-BOF'!E87:E92)-'Example - BF-BOF'!E88+SUM('Example - BF-BOF'!E97:E102)-'Example - BF-BOF'!E98 -> 34.45747001 | G31: =SUM('Example - BF-BOF'!D45:D51) -> 491.5 | H31: =SUM('Example - BF-BOF'!D16:D18) -> 111
B32: Your Tech: Today's Grid | C32: ='Your Tech - Edit This Sheet'!C9+'Your Tech - Edit This Sheet'!E133 -> 0 | D32: ='Your Tech - Edit This Sheet'!C12+SUM('Your Tech - Edit This Sheet'!E87,'Your Tech - Edit This Sheet'!E97,'Your Tech - Edit This Sheet'!E108,'Your Tech - Edit This Sheet'!E118) -> 0 | E32: ='Your Tech - Edit This Sheet'!C24+'Your Tech - Edit This Sheet'!C57+'Your Tech - Edit This Sheet'!C89+'Your Tech - Edit This Sheet'!C99+'Your Tech - Edit This Sheet'!C110+'Your Tech - Edit This Sheet'!C120 -> 0 | F32: =SUM('Your Tech - Edit This Sheet'!C22:C29)-'Your Tech - Edit This Sheet'!C24+SUM('Your Tech - Edit This Sheet'!C32:C37)+SUM('Your Tech - Edit This Sheet'!C55:C60)-'Your Tech - Edit This Sheet'!C57+SUM('Your Tech - Edit This Sheet'!C63:C68)+SUM('Your Tech - Edit This Sheet'!C88:C93)-'Your Tech - Edit This Sheet'!C89+SUM('Your Tech - Edit This Sheet'!C98:C104)-'Your Tech - Edit This Sheet'!C99+SUM('Your Tech - Edit This Sheet'!C109:C114)-'Your Tech - Edit This Sheet'!C110+SUM('Your Tech - Edit This Sheet'!C119:C124)-'Your Tech - Edit This Sheet'!C120+SUM('Your Tech - Edit This Sheet'!C134:C139)-'Your Tech - Edit This Sheet'!C135 -> 0 | G32: =SUM('Your Tech - Edit This Sheet'!C40:C45)+SUM('Your Tech - Edit This Sheet'!C47:C52)+SUM('Your Tech - Edit This Sheet'!C71:C77)+SUM('Your Tech - Edit This Sheet'!C79:C84) -> 0 | H32: =SUM('Your Tech - Edit This Sheet'!C16:C18) -> 0
B33: BF-BOF: Low-C Grid | C33: =C31 -> 59.16554466 | D33: 61 | E33: 43.06093234 | F33: =SUM('Example - BF-BOF'!D21:D30)-SUM('Example - BF-BOF'!D23,'Example - BF-BOF'!D26,'Example - BF-BOF'!D29)+SUM('Example - BF-BOF'!D33:D42)-SUM('Example - BF-BOF'!D35,'Example - BF-BOF'!D38,'Example - BF-BOF'!D41)+SUM('Example - BF-BOF'!E66:E73)-SUM('Example - BF-BOF'!E67,'Example - BF-BOF'!E71,'Example - BF-BOF'!E72)+SUM('Example - BF-BOF'!E76:E84)-SUM('Example - BF-BOF'!E77,'Example - BF-BOF'!E83,'Example - BF-BOF'!E81)+SUM('Example - BF-BOF'!E87:E94)-SUM('Example - BF-BOF'!E88,'Example - BF-BOF'!E92,'Example - BF-BOF'!E93)+SUM('Example - BF-BOF'!E97:E104)-SUM('Example - BF-BOF'!E98,'Example - BF-BOF'!E103,'Example - BF-BOF'!E102) -> 34.45747001 | G33: =G31 -> 491.5 | H33: =H31 -> 111
B34: Your Tech: Low-C Grid | C34: 0 | D34: 0 | E34: 0 | F34: =SUM('Your Tech - Edit This Sheet'!C22:C37)-SUM('Your Tech - Edit This Sheet'!C24,'Your Tech - Edit This Sheet'!C27,'Your Tech - Edit This Sheet'!C30)+SUM('Your Tech - Edit This Sheet'!C55:C68)-SUM('Your Tech - Edit This Sheet'!C57,'Your Tech - Edit This Sheet'!C60,'Your Tech - Edit This Sheet'!C61)+SUM('Your Tech - Edit This Sheet'!C88:C95)-SUM('Your Tech - Edit This Sheet'!C89,'Your Tech - Edit This Sheet'!C93,'Your Tech - Edit This Sheet'!C94)+SUM('Your Tech - Edit This Sheet'!C98:C106)-SUM('Your Tech - Edit This Sheet'!C99,'Your Tech - Edit This Sheet'!C103,'Your Tech - Edit This Sheet'!C105)+SUM('Your Tech - Edit This Sheet'!C109:C116)-SUM('Your Tech - Edit This Sheet'!C110,'Your Tech - Edit This Sheet'!C114,'Your Tech - Edit This Sheet'!C115)+SUM('Your Tech - Edit This Sheet'!C119:C126)-SUM('Your Tech - Edit This Sheet'!C120,'Your Tech - Edit This Sheet'!C124,'Your Tech - Edit This Sheet'!C125)+SUM('Your Tech - Edit This Sheet'!C134:C144)-SUM('Your Tech - Edit This Sheet'!C135,'Your Tech - Edit This Sheet'!C139,'Your Tech - Edit This Sheet'!C143) -> 0 | G34: =SUM('Your Tech - Edit This Sheet'!C40:C52)-'Your Tech - Edit This Sheet'!C44+SUM('Your Tech - Edit This Sheet'!C71:C84)-'Your Tech - Edit This Sheet'!C76 -> 0 | H34: =SUM('Your Tech - Edit This Sheet'!C16:C18) -> 0
A36: GHG Emissions Comparison
D37: Operations | E37: Electricity | F37: Fuel | G37: Feedstocks | H37: Transportation
B38: BF-BOF: Today's Grid | D38: =SUM('Example - BF-BOF'!H66:H71)+SUM('Example - BF-BOF'!H87:H92)+SUM('Example - BF-BOF'!H97:H102) -> 0.2339955623 | E38: ='Example - BF-BOF'!H23+'Example - BF-BOF'!K23+'Example - BF-BOF'!H35+'Example - BF-BOF'!K35 -> 0.03856229141 | F38: =SUM('Example - BF-BOF'!H21:H28)-'Example - BF-BOF'!H23+SUM('Example - BF-BOF'!K21:K28)-'Example - BF-BOF'!K23+SUM('Example - BF-BOF'!H33:H40)-'Example - BF-BOF'!H35+SUM('Example - BF-BOF'!K33:K40)-'Example - BF-BOF'!K35 -> 1.363465559 | G38: =SUM('Example - BF-BOF'!H107:H114)*('Example - BF-BOF'!F45+'Example - BF-BOF'!F55)+SUM('Example - BF-BOF'!H119:H126)*('Example - BF-BOF'!F46+'Example - BF-BOF'!F56)+SUM('Example - BF-BOF'!H47:H51)+SUM('Example - BF-BOF'!K47:K51)+SUM('Example - BF-BOF'!H57:H61)+SUM('Example - BF-BOF'!K57:K61)+SUM('Example - BF-BOF'!H76:H82) -> 0.3661224889 | H38: =SUM('Example - BF-BOF'!H16:H18)+SUM('Example - BF-BOF'!K16:K18) -> 0.160785
B39: Your Tech: Today's Grid | D39: =SUM('Your Tech - Edit This Sheet'!G88:G93)+SUM('Your Tech - Edit This Sheet'!G109:G114)+SUM('Your Tech - Edit This Sheet'!G119:G124) -> 0 | E39: ='Your Tech - Edit This Sheet'!G24+'Your Tech - Edit This Sheet'!J24+'Your Tech - Edit This Sheet'!G57+'Your Tech - Edit This Sheet'!J57 -> 0 | F39: =SUM('Your Tech - Edit This Sheet'!G22:G29)-'Your Tech - Edit This Sheet'!G24+SUM('Your Tech - Edit This Sheet'!G32:G37)+SUM('Your Tech - Edit This Sheet'!J22:J29)-'Your Tech - Edit This Sheet'!J24+SUM('Your Tech - Edit This Sheet'!J32:J37)+SUM('Your Tech - Edit This Sheet'!G55:G60)-'Your Tech - Edit This Sheet'!G57+SUM('Your Tech - Edit This Sheet'!G63:G68)+SUM('Your Tech - Edit This Sheet'!J55:J60)-'Your Tech - Edit This Sheet'!J57+SUM('Your Tech - Edit This Sheet'!J63:J68) -> 0 | G39: =SUM('Your Tech - Edit This Sheet'!G147:G154)*('Your Tech - Edit This Sheet'!E71+'Your Tech - Edit This Sheet'!E40)+SUM('Your Tech - Edit This Sheet'!G159:G166)*('Your Tech - Edit This Sheet'!E72+'Your Tech - Edit This Sheet'!E41)+SUM('Your Tech - Edit This Sheet'!G42:G45)+SUM('Your Tech - Edit This Sheet'!G47:G52)+SUM('Your Tech - Edit This Sheet'!J40:J45)+SUM('Your Tech - Edit This Sheet'!J47:J52)+SUM('Your Tech - Edit This Sheet'!G73:G77)+SUM('Your Tech - Edit This Sheet'!G79:G84)+SUM('Your Tech - Edit This Sheet'!J73:J77)+SUM('Your Tech - Edit This Sheet'!J79:J84)+SUM('Your Tech - Edit This Sheet'!G98:G104) -> 0 | H39: =SUM('Your Tech - Edit This Sheet'!G16:G18)+SUM('Your Tech - Edit This Sheet'!J16:J18) -> 0
B40: BF-BOF: Low-C Elec Mix | D40: =SUM('Example - BF-BOF'!H66:H73)-'Example - BF-BOF'!H67-'Example - BF-BOF'!H71+SUM('Example - BF-BOF'!H87:H94)-'Example - BF-BOF'!H88-'Example - BF-BOF'!H92+SUM('Example - BF-BOF'!H97:H104)-'Example - BF-BOF'!H98-'Example - BF-BOF'!H102 -> 0.08479249431 | E40: ='Example - BF-BOF'!H29+'Example - BF-BOF'!K29+'Example - BF-BOF'!H41+'Example - BF-BOF'!K41 -> 0.00697509147 | F40: =SUM('Example - BF-BOF'!H21:H30)-'Example - BF-BOF'!H23-'Example - BF-BOF'!H26+SUM('Example - BF-BOF'!K21:K30)-'Example - BF-BOF'!K23-'Example - BF-BOF'!K26-'Example - BF-BOF'!K29-'Example - BF-BOF'!H29+SUM('Example - BF-BOF'!H33:H42)-'Example - BF-BOF'!H41-'Example - BF-BOF'!H38-'Example - BF-BOF'!H35+SUM('Example - BF-BOF'!K33:K42)-'Example - BF-BOF'!K41-'Example - BF-BOF'!K38-'Example - BF-BOF'!K35 -> 1.363465559 | G40: =(SUM('Example - BF-BOF'!H107:H116)-'Example - BF-BOF'!H108-'Example - BF-BOF'!H112)*('Example - BF-BOF'!F45+'Example - BF-BOF'!F55)+(SUM('Example - BF-BOF'!H119:H128)-'Example - BF-BOF'!H120-'Example - BF-BOF'!H124)*('Example - BF-BOF'!F46+'Example - BF-BOF'!F56)+SUM('Example - BF-BOF'!H47:H52)-'Example - BF-BOF'!H50+SUM('Example - BF-BOF'!K47:K52)-'Example - BF-BOF'!K50+SUM('Example - BF-BOF'!H57:H62)-'Example - BF-BOF'!H60+SUM('Example - BF-BOF'!K57:K62)-'Example - BF-BOF'!K60++SUM('Example - BF-BOF'!H76:H84)-'Example - BF-BOF'!H77-'Example - BF-BOF'!H81 -> 0.234478188 | H40: =SUM('Example - BF-BOF'!H16:H18)+SUM('Example - BF-BOF'!K16:K18) -> 0.160785
B41: Your Tech: Low-C Elec Mix | D41: =SUM('Your Tech - Edit This Sheet'!G88:G95)-'Your Tech - Edit This Sheet'!G93-'Your Tech - Edit This Sheet'!G89+SUM('Your Tech - Edit This Sheet'!G109:G116)-'Your Tech - Edit This Sheet'!G114-'Your Tech - Edit This Sheet'!G110+SUM('Your Tech - Edit This Sheet'!G119:G126)-'Your Tech - Edit This Sheet'!G124-'Your Tech - Edit This Sheet'!G120 -> 0 | E41: ='Your Tech - Edit This Sheet'!G30+'Your Tech - Edit This Sheet'!J30+'Your Tech - Edit This Sheet'!G61+'Your Tech - Edit This Sheet'!J61 -> 0 | F41: =SUM('Your Tech - Edit This Sheet'!G22:G37)-'Your Tech - Edit This Sheet'!G30-'Your Tech - Edit This Sheet'!G27-'Your Tech - Edit This Sheet'!G24+SUM('Your Tech - Edit This Sheet'!J22:J37)-'Your Tech - Edit This Sheet'!J30-'Your Tech - Edit This Sheet'!J27-'Your Tech - Edit This Sheet'!J24+SUM('Your Tech - Edit This Sheet'!G55:G68)-'Your Tech - Edit This Sheet'!G61-'Your Tech - Edit This Sheet'!G60-'Your Tech - Edit This Sheet'!G57+SUM('Your Tech - Edit This Sheet'!J55:J68)-'Your Tech - Edit This Sheet'!J61-'Your Tech - Edit This Sheet'!J60-'Your Tech - Edit This Sheet'!J57 -> 0 | G41: =(SUM('Your Tech - Edit This Sheet'!G147:G156)-'Your Tech - Edit This Sheet'!G152-'Your Tech - Edit This Sheet'!G148)*('Your Tech - Edit This Sheet'!E71+'Your Tech - Edit This Sheet'!E40)+(SUM('Your Tech - Edit This Sheet'!G159:G168)-'Your Tech - Edit This Sheet'!G164-'Your Tech - Edit This Sheet'!G160)*('Your Tech - Edit This Sheet'!E72+'Your Tech - Edit This Sheet'!E41)+SUM('Your Tech - Edit This Sheet'!G42:G52)-'Your Tech - Edit This Sheet'!G44+SUM('Your Tech - Edit This Sheet'!J42:J52)-'Your Tech - Edit This Sheet'!J44+SUM('Your Tech - Edit This Sheet'!G73:G84)-'Your Tech - Edit This Sheet'!G76+SUM('Your Tech - Edit This Sheet'!J73:J84)-'Your Tech - Edit This Sheet'!J76+SUM('Your Tech - Edit This Sheet'!G98:G106)-'Your Tech - Edit This Sheet'!G99-'Your Tech - Edit This Sheet'!G103 -> 0 | H41: =SUM('Your Tech - Edit This Sheet'!G16:G18)+SUM('Your Tech - Edit This Sheet'!J16:J18) -> 0
A45: GHG Emissions Comparison | C45: Extraction + Beneficiation + Agglomeration | D45: Iron Ore Transport | E45: Ironmaking | F45: Steelmaking & Finishing
B46: BF-BOF: Today's Grid | C46: =SUM('Example - BF-BOF'!H107:H114)*('Example - BF-BOF'!F45+'Example - BF-BOF'!F55)+SUM('Example - BF-BOF'!H119:H126)*('Example - BF-BOF'!F46+'Example - BF-BOF'!F56)+SUM('Example - BF-BOF'!H76:H82) -> 0.3527974889 | D46: =H38 -> 0.160785 | E46: =SUM('Example - BF-BOF'!H21:H28)+SUM('Example - BF-BOF'!K21:K28)+SUM('Example - BF-BOF'!H47:H51)+SUM('Example - BF-BOF'!K47:K51) -> 1.3753905 | F46: =SUM('Example - BF-BOF'!H33:H40)+SUM('Example - BF-BOF'!K33:K40)+SUM('Example - BF-BOF'!H57:H61)+SUM('Example - BF-BOF'!K57:K61)+SUM('Example - BF-BOF'!H66:H71)+SUM('Example - BF-BOF'!H87:H92)+SUM('Example - BF-BOF'!H97:H102) -> 0.2739579128
B47: Your Tech: Today's Grid | C47: =SUM('Your Tech - Edit This Sheet'!G147:G154)*('Your Tech - Edit This Sheet'!E71+'Your Tech - Edit This Sheet'!E40)+SUM('Your Tech - Edit This Sheet'!G159:G166)*('Your Tech - Edit This Sheet'!E72+'Your Tech - Edit This Sheet'!E41)+SUM('Your Tech - Edit This Sheet'!G98:G104) -> 0 | D47: =H39 -> 0 | E47: =SUM('Your Tech - Edit This Sheet'!G22:G29)+SUM('Your Tech - Edit This Sheet'!G32:G37)+SUM('Your Tech - Edit This Sheet'!J22:J29)+SUM('Your Tech - Edit This Sheet'!J32:J37)+SUM('Your Tech - Edit This Sheet'!G42:G45)+SUM('Your Tech - Edit This Sheet'!G47:G52)+SUM('Your Tech - Edit This Sheet'!J40:J45)+SUM('Your Tech - Edit This Sheet'!J47:J52) -> 0 | F47: =SUM('Your Tech - Edit This Sheet'!G55:G60)+SUM('Your Tech - Edit This Sheet'!G63:G68)+SUM('Your Tech - Edit This Sheet'!J55:J60)+SUM('Your Tech - Edit This Sheet'!J63:J68)+SUM('Your Tech - Edit This Sheet'!G73:G77)+SUM('Your Tech - Edit This Sheet'!G79:G84)+SUM('Your Tech - Edit This Sheet'!J73:J77)+SUM('Your Tech - Edit This Sheet'!J79:J84)+SUM('Your Tech - Edit This Sheet'!G88:G93)+SUM('Your Tech - Edit This Sheet'!G109:G114)+SUM('Your Tech - Edit This Sheet'!G119:G124) -> 0
B48: BF-BOF: Low-C Elec Mix | C48: =(SUM('Example - BF-BOF'!H107:H116)-'Example - BF-BOF'!H108-'Example - BF-BOF'!H112)*('Example - BF-BOF'!F45+'Example - BF-BOF'!F55)+(SUM('Example - BF-BOF'!H119:H128)-'Example - BF-BOF'!H120-'Example - BF-BOF'!H124)*('Example - BF-BOF'!F46+'Example - BF-BOF'!F56)+SUM('Example - BF-BOF'!H76:H84)-'Example - BF-BOF'!H77-'Example - BF-BOF'!H81 -> 0.221153188 | D48: =H40 -> 0.160785 | E48: =SUM('Example - BF-BOF'!H21:H30)-'Example - BF-BOF'!H23-'Example - BF-BOF'!H26+SUM('Example - BF-BOF'!K21:K30)-'Example - BF-BOF'!K23-'Example - BF-BOF'!K26+SUM('Example - BF-BOF'!H47:H52)-'Example - BF-BOF'!H50+SUM('Example - BF-BOF'!K47:K52)-'Example - BF-BOF'!K50 -> 1.354022688 | F48: =SUM('Example - BF-BOF'!H33:H42)-'Example - BF-BOF'!H35-'Example - BF-BOF'!H38+SUM('Example - BF-BOF'!K33:K42)-'Example - BF-BOF'!K35-'Example - BF-BOF'!K38+SUM('Example - BF-BOF'!H57:H62)-'Example - BF-BOF'!H60+SUM('Example - BF-BOF'!K57:K62)-'Example - BF-BOF'!K60+SUM('Example - BF-BOF'!H66:H73)-'Example - BF-BOF'!H67-'Example - BF-BOF'!H71+SUM('Example - BF-BOF'!H87:H94)-'Example - BF-BOF'!H88-'Example - BF-BOF'!H92+SUM('Example - BF-BOF'!H97:H104)-'Example - BF-BOF'!H98-'Example - BF-BOF'!H102 -> 0.1145354566
B49: Your Tech, Low-C Elec Mix | C49: =(SUM('Your Tech - Edit This Sheet'!G147:G156)-'Your Tech - Edit This Sheet'!G152-'Your Tech - Edit This Sheet'!G148)*('Your Tech - Edit This Sheet'!E40+'Your Tech - Edit This Sheet'!E71)+(SUM('Your Tech - Edit This Sheet'!G159:G168)-'Your Tech - Edit This Sheet'!G164-'Your Tech - Edit This Sheet'!G160)*('Your Tech - Edit This Sheet'!E72+'Your Tech - Edit This Sheet'!E41)+SUM('Your Tech - Edit This Sheet'!G98:G106)-'Your Tech - Edit This Sheet'!G103-'Your Tech - Edit This Sheet'!G99 -> 0 | D49: =H41 -> 0 | E49: =SUM('Your Tech - Edit This Sheet'!G22:G37)-'Your Tech - Edit This Sheet'!G27-'Your Tech - Edit This Sheet'!G24+SUM('Your Tech - Edit This Sheet'!J22:J37)-'Your Tech - Edit This Sheet'!J27-'Your Tech - Edit This Sheet'!J24+SUM('Your Tech - Edit This Sheet'!G42:G52)-'Your Tech - Edit This Sheet'!G44+SUM('Your Tech - Edit This Sheet'!J40:J52)-'Your Tech - Edit This Sheet'!J44 -> 0 | F49: =SUM('Your Tech - Edit This Sheet'!G55:G68)-'Your Tech - Edit This Sheet'!G60-'Your Tech - Edit This Sheet'!G57+SUM('Your Tech - Edit This Sheet'!J55:J68)-'Your Tech - Edit This Sheet'!J60-'Your Tech - Edit This Sheet'!J57+SUM('Your Tech - Edit This Sheet'!G73:G84)-'Your Tech - Edit This Sheet'!G76+SUM('Your Tech - Edit This Sheet'!J73:J84)-'Your Tech - Edit This Sheet'!J76+SUM('Your Tech - Edit This Sheet'!G88:G95)-'Your Tech - Edit This Sheet'!G93-'Your Tech - Edit This Sheet'!G89+SUM('Your Tech - Edit This Sheet'!G109:G116)-'Your Tech - Edit This Sheet'!G114-'Your Tech - Edit This Sheet'!G110+SUM('Your Tech - Edit This Sheet'!G119:G126)-'Your Tech - Edit This Sheet'!G124-'Your Tech - Edit This Sheet'!G120 -> 0
